Service area,Service sub division,TVBC Service,Expense type,Detailed expense type,TVBC account code,Supplier Name, Nett Value ,Accounting Year,Period,
Cultural & Related,Culture & Heritage,Estates and Economic Development ,Supplies & Services,"Equipment, Furniture & Materials",Purchase Equip + Materials,AMAZON, 11.65 ,2014,1,
Central Services to the Public,Management & Support Services,Estates and Economic Development ,Supplies & Services,"Equipment, Furniture & Materials",Purchase Materials (Job Cost),C Brewer & Sons Ltd," 1,219.13 ",2014,1,
Central Services to the Public,Management & Support Services,Estates and Economic Development ,Supplies & Services,"Equipment, Furniture & Materials",Purchase Materials (Job Cost),Buildbase Ltd, 5.50 ,2014,1,
Central Services to the Public,Management & Support Services,Estates and Economic Development ,Supplies & Services,"Equipment, Furniture & Materials",Purchase Materials (Job Cost),City Electrical Factors Ltd, 102.86 ,2014,1,
Central Services to the Public,Management & Support Services,Estates and Economic Development ,Supplies & Services,"Equipment, Furniture & Materials",Purchase Materials (Job Cost),Tesco Stores Ltd, 4.17 ,2014,1,
Central Services to the Public,Management & Support Services,Estates and Economic Development ,Supplies & Services,"Equipment, Furniture & Materials",Purchase Materials (Job Cost),Edmundson Electrical Ltd, 882.70 ,2014,1,
Central Services to the Public,Management & Support Services,Estates and Economic Development ,Supplies & Services,"Equipment, Furniture & Materials",Purchase Materials (Job Cost),Elliott Brothers Ltd, 11.25 ,2014,1,
Central Services to the Public,Management & Support Services,Estates and Economic Development ,Supplies & Services,"Equipment, Furniture & Materials",Purchase Materials (Job Cost),Screwfix Direct Ltd, 66.40 ,2014,1,
Central Services to the Public,Management & Support Services,Estates and Economic Development ,Supplies & Services,"Equipment, Furniture & Materials",Purchase Materials (Job Cost),Howdens Joinery Co, 129.95 ,2014,1,
Central Services to the Public,Management & Support Services,Estates and Economic Development ,Supplies & Services,"Equipment, Furniture & Materials",Purchase Materials (Job Cost),Jewson Ltd, 108.25 ,2014,1,
Central Services to the Public,Management & Support Services,Estates and Economic Development ,Supplies & Services,"Equipment, Furniture & Materials",Purchase Materials (Job Cost),Newey & Eyre Ltd, 332.47 ,2014,1,
Central Services to the Public,Management & Support Services,Estates and Economic Development ,Supplies & Services,"Equipment, Furniture & Materials",Purchase Materials (Job Cost),The Range, 15.38 ,2014,1,
Central Services to the Public,Management & Support Services,Estates and Economic Development ,Supplies & Services,"Equipment, Furniture & Materials",Purchase Materials (Job Cost),Roland Security Llp, 212.65 ,2014,1,
Central Services to the Public,Management & Support Services,Estates and Economic Development ,Supplies & Services,"Equipment, Furniture & Materials",Purchase Materials (Job Cost),Travis Perkins Trading Co Ltd," 1,014.26 ",2014,1,
Central Services to the Public,Management & Support Services,Estates and Economic Development ,Supplies & Services,"Equipment, Furniture & Materials",Purchase Materials (Job Cost),Abj Minimix Ltd, 250.00 ,2014,1,
Central Services to the Public,Management & Support Services,Estates and Economic Development ,Supplies & Services,"Equipment, Furniture & Materials",Purchase Materials (Job Cost),Wessex Fixings Ltd, 21.55 ,2014,1,
Central Services to the Public,Management & Support Services,Estates and Economic Development ,Supplies & Services,"Equipment, Furniture & Materials",Purchase Materials (Job Cost),Wolseley Uk Limited, 566.36 ,2014,1,
Central Services to the Public,Management & Support Services,Estates and Economic Development ,Supplies & Services,"Equipment, Furniture & Materials",Purchase Materials (Job Cost),Woodstock Plumbing & Heating Supp Ltd, 164.62 ,2014,1,
Central Services to the Public,Management & Support Services,Estates and Economic Development ,Supplies & Services,"Equipment, Furniture & Materials",Purchase Materials (Job Cost),Andover Glass Works Ltd, 300.72 ,2014,1,
Central Services to the Public,Management & Support Services,Estates and Economic Development ,Supplies & Services,"Equipment, Furniture & Materials",Purchase Materials (Job Cost),A.T.F Supplies, 114.09 ,2014,1,
Central Services to the Public,Management & Support Services,Estates and Economic Development ,Supplies & Services,"Equipment, Furniture & Materials",Purchase Materials (Job Cost),Yesss Electrical, 281.88 ,2014,1,
Central Services to the Public,Management & Support Services,Estates and Economic Development ,Supplies & Services,"Equipment, Furniture & Materials",Purchase Materials (Job Cost),Axiomatic Technology Ltd, 228.33 ,2014,1,
Central Services to the Public,Management & Support Services,Estates and Economic Development ,Supplies & Services,"Equipment, Furniture & Materials",Purchase Materials (Job Cost),Fire Seals Direct, 163.63 ,2014,1,
Central Services to the Public,Management & Support Services,Estates and Economic Development ,Supplies & Services,"Equipment, Furniture & Materials",Purchase Materials (Job Cost),Burton Roofing Merchants Ltd, 18.45 ,2014,1,
Central Services to the Public,Management & Support Services,Estates and Economic Development ,Supplies & Services,"Equipment, Furniture & Materials",Purchase Tools,Wessex Fixings Ltd, 345.21 ,2014,1,
Housing Services,Homelessness,Housing and Environmental Health ,Supplies & Services,Miscellaneous Expenses,Bed & Breakfast,Days Inn, 780.00 ,2014,1,
Housing Services,Homelessness,Housing and Environmental Health ,Supplies & Services,Miscellaneous Expenses,Bed & Breakfast,Premier Inn, 63.33 ,2014,1,
Environmental & Regulatory,Community Safety,Community and Leisure ,Transport Related Expenditure,Direct Transport Costs,Licences,DVLA, 222.50 ,2014,1,
"Highways, Roads & Transport",Parking Services,Plan Pol & Transport,Transport Related Expenditure,Direct Transport Costs,Licences,DVLA, 222.50 ,2014,1,
Cultural & Related,Open Spaces,Environmental,Transport Related Expenditure,Direct Transport Costs,Licences,DVLA, 222.50 ,2014,1,
Cultural & Related,Open Spaces,Environmental,Supplies & Services,"Equipment, Furniture & Materials",Purchase Equip + Materials,Screwfix Direct Ltd, 709.02 ,2014,1,
Cultural & Related,Open Spaces,Environmental,Supplies & Services,"Equipment, Furniture & Materials",Purchase Equip + Materials,Wickes Building Supplies Ltd, 19.98 ,2014,1,
Cultural & Related,Open Spaces,Environmental,Supplies & Services,"Equipment, Furniture & Materials",Purchase Equip + Materials,Toolstation Ltd, 154.12 ,2014,1,
Cultural & Related,Open Spaces,Environmental,Supplies & Services,"Equipment, Furniture & Materials",Purchase Equip + Materials,Harbro Supplies Ltd, 88.21 ,2014,1,
Environmental & Regulatory,Street Cleansing (not chargeable to Highways),Environmental,Transport Related Expenditure,Direct Transport Costs,Licences,DVLA, 285.00 ,2014,1,
Central Services to the Public,Management & Support Services,Environmental,Transport Related Expenditure,Direct Transport Costs,MOT Tests,Vosa, 205.00 ,2014,1,
Central Services to the Public,Management & Support Services,Environmental,Supplies & Services,"Printing, Stationery & General Office Expenses",Written Media,The Book Service Ltd, 38.50 ,2014,1,
Central Services to the Public,Emergency Planning,Corporate & Democratic,Supplies & Services,"Equipment, Furniture & Materials",Purchase Equip + Materials,Screwfix Direct Ltd, 11.66 ,2014,1,
Central Services to the Public,Emergency Planning,Corporate & Democratic,Supplies & Services,Miscellaneous Expenses,Other Miscellaneous Costs,Burbidges Bakery, 55.00 ,2014,1,
External Trading Accounts,Business Parks,Estates and Economic Development ,Premises related Expenditure,Repairs Alterations & Maintenance of Buildings,Building Maint - Non Estates,Roland Security Llp, 104.50 ,2014,3,
Cultural & Related,Culture & Heritage,Estates and Economic Development ,Supplies & Services,"Equipment, Furniture & Materials",Purchase Equip + Materials,AMAZON, 10.82 ,2014,3,
Cultural & Related,Culture & Heritage,Estates and Economic Development ,Supplies & Services,"Equipment, Furniture & Materials",Purchase Equip + Materials,AMAZON, 52.74 ,2014,3,
Central Services to the Public,Management & Support Services,Estates and Economic Development ,Supplies & Services,"Equipment, Furniture & Materials",Purchase Equip + Materials,Edmundson Electrical Ltd, 71.66 ,2014,3,
Central Services to the Public,Management & Support Services,Estates and Economic Development ,Supplies & Services,"Equipment, Furniture & Materials",Purchase Materials (Job Cost),C Brewer & Sons Ltd," 1,066.29 ",2014,3,
Central Services to the Public,Management & Support Services,Estates and Economic Development ,Supplies & Services,"Equipment, Furniture & Materials",Purchase Materials (Job Cost),C Brewer & Sons Ltd, 827.89 ,2014,3,
Central Services to the Public,Management & Support Services,Estates and Economic Development ,Supplies & Services,"Equipment, Furniture & Materials",Purchase Materials (Job Cost),Buildbase Ltd, 69.80 ,2014,3,
Central Services to the Public,Management & Support Services,Estates and Economic Development ,Supplies & Services,"Equipment, Furniture & Materials",Purchase Materials (Job Cost),Buildbase Ltd, 106.41 ,2014,3,
Central Services to the Public,Management & Support Services,Estates and Economic Development ,Supplies & Services,"Equipment, Furniture & Materials",Purchase Materials (Job Cost),Buildbase Ltd, 28.50 ,2014,3,
Central Services to the Public,Management & Support Services,Estates and Economic Development ,Supplies & Services,"Equipment, Furniture & Materials",Purchase Materials (Job Cost),Edmundson Electrical Ltd, 550.94 ,2014,3,
Central Services to the Public,Management & Support Services,Estates and Economic Development ,Supplies & Services,"Equipment, Furniture & Materials",Purchase Materials (Job Cost),Edmundson Electrical Ltd," 1,497.58 ",2014,3,
Central Services to the Public,Management & Support Services,Estates and Economic Development ,Supplies & Services,"Equipment, Furniture & Materials",Purchase Materials (Job Cost),Edmundson Electrical Ltd, 6.97 ,2014,3,
Central Services to the Public,Management & Support Services,Estates and Economic Development ,Supplies & Services,"Equipment, Furniture & Materials",Purchase Materials (Job Cost),Elliott Brothers Ltd, 8.99 ,2014,3,
Central Services to the Public,Management & Support Services,Estates and Economic Development ,Supplies & Services,"Equipment, Furniture & Materials",Purchase Materials (Job Cost),Screwfix Direct Ltd, 15.91 ,2014,3,
Central Services to the Public,Management & Support Services,Estates and Economic Development ,Supplies & Services,"Equipment, Furniture & Materials",Purchase Materials (Job Cost),South Coast Welding Supplies Ltd, 119.66 ,2014,3,
Central Services to the Public,Management & Support Services,Estates and Economic Development ,Supplies & Services,"Equipment, Furniture & Materials",Purchase Materials (Job Cost),Howdens Joinery Co, 382.78 ,2014,3,
Central Services to the Public,Management & Support Services,Estates and Economic Development ,Supplies & Services,"Equipment, Furniture & Materials",Purchase Materials (Job Cost),Howdens Joinery Co, 15.24 ,2014,3,
Central Services to the Public,Management & Support Services,Estates and Economic Development ,Supplies & Services,"Equipment, Furniture & Materials",Purchase Materials (Job Cost),Howdens Joinery Co, 49.84 ,2014,3,
Central Services to the Public,Management & Support Services,Estates and Economic Development ,Supplies & Services,"Equipment, Furniture & Materials",Purchase Materials (Job Cost),Halfords Ltd, 29.97 ,2014,3,
Central Services to the Public,Management & Support Services,Estates and Economic Development ,Supplies & Services,"Equipment, Furniture & Materials",Purchase Materials (Job Cost),Jewson Ltd, 251.08 ,2014,3,
Central Services to the Public,Management & Support Services,Estates and Economic Development ,Supplies & Services,"Equipment, Furniture & Materials",Purchase Materials (Job Cost),Roland Security Llp, 152.66 ,2014,3,
Central Services to the Public,Management & Support Services,Estates and Economic Development ,Supplies & Services,"Equipment, Furniture & Materials",Purchase Materials (Job Cost),Roland Security Llp, 104.50 ,2014,3,
Central Services to the Public,Management & Support Services,Estates and Economic Development ,Supplies & Services,"Equipment, Furniture & Materials",Purchase Materials (Job Cost),Roland Security Llp, 66.57 ,2014,3,
Central Services to the Public,Management & Support Services,Estates and Economic Development ,Supplies & Services,"Equipment, Furniture & Materials",Purchase Materials (Job Cost),Ab Building Products Ltd, 3.46 ,2014,3,
Central Services to the Public,Management & Support Services,Estates and Economic Development ,Supplies & Services,"Equipment, Furniture & Materials",Purchase Materials (Job Cost),Travis Perkins Trading Co Ltd, 568.18 ,2014,3,
Central Services to the Public,Management & Support Services,Estates and Economic Development ,Supplies & Services,"Equipment, Furniture & Materials",Purchase Materials (Job Cost),Travis Perkins Trading Co Ltd, 622.43 ,2014,3,
Central Services to the Public,Management & Support Services,Estates and Economic Development ,Supplies & Services,"Equipment, Furniture & Materials",Purchase Materials (Job Cost),Travis Perkins Trading Co Ltd, 26.18 ,2014,3,
Central Services to the Public,Management & Support Services,Estates and Economic Development ,Supplies & Services,"Equipment, Furniture & Materials",Purchase Materials (Job Cost),Wessex Fixings Ltd, 105.47 ,2014,3,
Central Services to the Public,Management & Support Services,Estates and Economic Development ,Supplies & Services,"Equipment, Furniture & Materials",Purchase Materials (Job Cost),Wolseley Uk Limited, 476.79 ,2014,3,
Central Services to the Public,Management & Support Services,Estates and Economic Development ,Supplies & Services,"Equipment, Furniture & Materials",Purchase Materials (Job Cost),Wolseley Uk Limited, 739.97 ,2014,3,
Central Services to the Public,Management & Support Services,Estates and Economic Development ,Supplies & Services,"Equipment, Furniture & Materials",Purchase Materials (Job Cost),Woodstock Plumbing & Heating Supp Ltd, 225.40 ,2014,3,
Central Services to the Public,Management & Support Services,Estates and Economic Development ,Supplies & Services,"Equipment, Furniture & Materials",Purchase Materials (Job Cost),Woodstock Plumbing & Heating Supp Ltd, 638.38 ,2014,3,
Central Services to the Public,Management & Support Services,Estates and Economic Development ,Supplies & Services,"Equipment, Furniture & Materials",Purchase Materials (Job Cost),Andover Glass Works Ltd, 55.83 ,2014,3,
Central Services to the Public,Management & Support Services,Estates and Economic Development ,Supplies & Services,"Equipment, Furniture & Materials",Purchase Materials (Job Cost),Wickes Building Supplies Ltd, 12.02 ,2014,3,
Central Services to the Public,Management & Support Services,Estates and Economic Development ,Supplies & Services,"Equipment, Furniture & Materials",Purchase Materials (Job Cost),A.T.F Supplies, 170.22 ,2014,3,
Central Services to the Public,Management & Support Services,Estates and Economic Development ,Supplies & Services,"Equipment, Furniture & Materials",Purchase Materials (Job Cost),Bnd Abrasives & Tapes Limited, 49.84 ,2014,3,
Central Services to the Public,Management & Support Services,Estates and Economic Development ,Supplies & Services,"Equipment, Furniture & Materials",Purchase Materials (Job Cost),Yesss Electrical, 339.20 ,2014,3,
Central Services to the Public,Management & Support Services,Estates and Economic Development ,Supplies & Services,"Equipment, Furniture & Materials",Purchase Materials (Job Cost),Yesss Electrical, 275.38 ,2014,3,
Central Services to the Public,Management & Support Services,Estates and Economic Development ,Supplies & Services,"Equipment, Furniture & Materials",Purchase Materials (Job Cost),Kew (Electrical Distributors) Limited, 25.80 ,2014,3,
Central Services to the Public,Management & Support Services,Estates and Economic Development ,Supplies & Services,"Equipment, Furniture & Materials",Purchase Materials (Job Cost),Burton Roofing Merchants Ltd, 4.80 ,2014,3,
Central Services to the Public,Management & Support Services,Estates and Economic Development ,Supplies & Services,"Equipment, Furniture & Materials",Purchase Materials (Job Cost),Andover Floor Covering Ltd, 66.00 ,2014,3,
Central Services to the Public,Management & Support Services,Estates and Economic Development ,Supplies & Services,"Equipment, Furniture & Materials",Purchase Tools,Wessex Fixings Ltd, 282.04 ,2014,3,
Central Services to the Public,Management & Support Services,Estates and Economic Development ,Supplies & Services,"Equipment, Furniture & Materials",Purchase Tools,Woodstock Plumbing & Heating Supp Ltd, 107.96 ,2014,3,
Central Services to the Public,Management & Support Services,Estates and Economic Development ,Supplies & Services,Communications & Computing,Computer Software,AMAZON, 13.68 ,2014,3,
Environmental & Regulatory,Regulatory Services,Housing and Environmental Health ,Transport Related Expenditure,Direct Transport Costs,Licences,DVLA, 455.00 ,2014,3,
Housing Services,Homelessness,Housing and Environmental Health ,Supplies & Services,Miscellaneous Expenses,Bed & Breakfast,Days Inn," 1,794.00 ",2014,3,
Housing Services,Homelessness,Housing and Environmental Health ,Supplies & Services,Miscellaneous Expenses,Bed & Breakfast,Days Inn, 316.67 ,2014,3,
Cultural & Related,Open Spaces,Community and Leisure ,Transport Related Expenditure,Direct Transport Costs,Licences,DVLA, 227.50 ,2014,3,
Cultural & Related,Open Spaces,Community and Leisure ,Transport Related Expenditure,Direct Transport Costs,Licences,DVLA, 227.50 ,2014,3,
Cultural & Related,Open Spaces,Community and Leisure ,Supplies & Services,"Equipment, Furniture & Materials",Purchase Equip + Materials,Screwfix Direct Ltd, 19.16 ,2014,3,
Cultural & Related,Open Spaces,Environmental,Transport Related Expenditure,Direct Transport Costs,Licences,DVLA," 2,730.00 ",2014,3,
Cultural & Related,Open Spaces,Environmental,Supplies & Services,"Equipment, Furniture & Materials",Purchase Equip + Materials,Screwfix Direct Ltd, 124.12 ,2014,3,
Cultural & Related,Open Spaces,Environmental,Supplies & Services,"Printing, Stationery & General Office Expenses",Postage Costs,Post Office Ltd, 6.40 ,2014,3,
Cultural & Related,Open Spaces,Environmental,Supplies & Services,Communications & Computing,Computer Hardware,Argos Ltd, 126.64 ,2014,3,
Environmental & Regulatory,Street Cleansing (not chargeable to Highways),Environmental,Transport Related Expenditure,Direct Transport Costs,Licences,DVLA, 910.00 ,2014,3,
Environmental & Regulatory,Waste management,Environmental,Transport Related Expenditure,Direct Transport Costs,Licences,DVLA, 652.50 ,2014,3,
Central Services to the Public,Management & Support Services,Environmental,Supplies & Services,"Equipment, Furniture & Materials",Maintenance Equip + Materials,Continental Automotive Uk Ltd, 330.00 ,2014,3,
Central Services to the Public,Management & Support Services,Environmental,Transport Related Expenditure,Direct Transport Costs,Licences,DVLA, 227.50 ,2014,3,
Central Services to the Public,Management & Support Services,Estates and Economic Development ,Supplies & Services,"Equipment, Furniture & Materials",Purchase Equip + Materials,Edmundson Electrical Ltd, 210.00 ,2014,4,
Central Services to the Public,Management & Support Services,Estates and Economic Development ,Supplies & Services,"Equipment, Furniture & Materials",Purchase Equip + Materials,Petsathome, 18.33 ,2014,4,
Cultural & Related,Culture & Heritage,Estates and Economic Development ,Supplies & Services,"Equipment, Furniture & Materials",Purchase Equip + Materials,Espares Ltd, 12.07 ,2014,4,
Central Services to the Public,Management & Support Services,Estates and Economic Development ,Supplies & Services,"Equipment, Furniture & Materials",Purchase Equip + Materials,Edmundson Electrical Ltd, 52.31 ,2014,4,
Central Services to the Public,Management & Support Services,Estates and Economic Development ,Transport Related Expenditure,Direct Transport Costs,Licences,DVLA, 910.00 ,2014,4,
Central Services to the Public,Management & Support Services,Estates and Economic Development ,Supplies & Services,"Equipment, Furniture & Materials",Purchase Materials (Job Cost),C Brewer & Sons Ltd, 207.99 ,2014,4,
Central Services to the Public,Management & Support Services,Estates and Economic Development ,Supplies & Services,"Equipment, Furniture & Materials",Purchase Materials (Job Cost),C Brewer & Sons Ltd, 504.42 ,2014,4,
Central Services to the Public,Management & Support Services,Estates and Economic Development ,Supplies & Services,"Equipment, Furniture & Materials",Purchase Materials (Job Cost),Buildbase Ltd, 161.02 ,2014,4,
Central Services to the Public,Management & Support Services,Estates and Economic Development ,Supplies & Services,"Equipment, Furniture & Materials",Purchase Materials (Job Cost),Edmundson Electrical Ltd," 1,190.17 ",2014,4,
Central Services to the Public,Management & Support Services,Estates and Economic Development ,Supplies & Services,"Equipment, Furniture & Materials",Purchase Materials (Job Cost),Screwfix Direct Ltd, 46.52 ,2014,4,
Central Services to the Public,Management & Support Services,Estates and Economic Development ,Supplies & Services,"Equipment, Furniture & Materials",Purchase Materials (Job Cost),Howdens Joinery Co, 356.89 ,2014,4,
Central Services to the Public,Management & Support Services,Estates and Economic Development ,Supplies & Services,"Equipment, Furniture & Materials",Purchase Materials (Job Cost),Halfords Ltd, 21.66 ,2014,4,
Central Services to the Public,Management & Support Services,Estates and Economic Development ,Supplies & Services,"Equipment, Furniture & Materials",Purchase Materials (Job Cost),Newey & Eyre Ltd, 61.00 ,2014,4,
Central Services to the Public,Management & Support Services,Estates and Economic Development ,Supplies & Services,"Equipment, Furniture & Materials",Purchase Materials (Job Cost),Roland Security Llp, 41.59 ,2014,4,
Central Services to the Public,Management & Support Services,Estates and Economic Development ,Supplies & Services,"Equipment, Furniture & Materials",Purchase Materials (Job Cost),Travis Perkins Trading Co Ltd, 969.16 ,2014,4,
Central Services to the Public,Management & Support Services,Estates and Economic Development ,Supplies & Services,"Equipment, Furniture & Materials",Purchase Materials (Job Cost),Wessex Fixings Ltd, 404.66 ,2014,4,
Central Services to the Public,Management & Support Services,Estates and Economic Development ,Supplies & Services,"Equipment, Furniture & Materials",Purchase Materials (Job Cost),Wolseley Uk Limited, 991.09 ,2014,4,
Central Services to the Public,Management & Support Services,Estates and Economic Development ,Supplies & Services,"Equipment, Furniture & Materials",Purchase Materials (Job Cost),Woodstock Plumbing & Heating Supp Ltd, 344.02 ,2014,4,
Central Services to the Public,Management & Support Services,Estates and Economic Development ,Supplies & Services,"Equipment, Furniture & Materials",Purchase Materials (Job Cost),Andover Glass Works Ltd, 289.69 ,2014,4,
Central Services to the Public,Management & Support Services,Estates and Economic Development ,Supplies & Services,"Equipment, Furniture & Materials",Purchase Materials (Job Cost),A.T.F Supplies, 48.52 ,2014,4,
Central Services to the Public,Management & Support Services,Estates and Economic Development ,Supplies & Services,"Equipment, Furniture & Materials",Purchase Materials (Job Cost),Yesss Electrical, 475.87 ,2014,4,
Central Services to the Public,Management & Support Services,Estates and Economic Development ,Supplies & Services,"Equipment, Furniture & Materials",Purchase Tools,C Brewer & Sons Ltd, 13.65 ,2014,4,
Central Services to the Public,Management & Support Services,Estates and Economic Development ,Supplies & Services,"Equipment, Furniture & Materials",Purchase Tools,Wolseley Uk Limited, 56.20 ,2014,4,
Housing Services,Homelessness,Housing and Environmental Health ,Supplies & Services,Miscellaneous Expenses,Bed & Breakfast,Days Inn," 1,269.17 ",2014,4,
Cultural & Related,Open Spaces,Environmental,Transport Related Expenditure,Direct Transport Costs,Licences,DVLA, 455.00 ,2014,4,
Cultural & Related,Open Spaces,Environmental,Supplies & Services,"Equipment, Furniture & Materials",Purchase Equip + Materials,C Brewer & Sons Ltd, 398.94 ,2014,4,
Cultural & Related,Open Spaces,Environmental,Supplies & Services,"Equipment, Furniture & Materials",Purchase Equip + Materials,Screwfix Direct Ltd, 165.07 ,2014,4,
Cultural & Related,Open Spaces,Environmental,Supplies & Services,"Equipment, Furniture & Materials",Purchase Tools,Scats Country Store, 19.00 ,2014,4,
Environmental & Regulatory,Street Cleansing (not chargeable to Highways),Environmental,Transport Related Expenditure,Direct Transport Costs,Licences,DVLA, 355.00 ,2014,4,
Environmental & Regulatory,Waste management,Environmental,Transport Related Expenditure,Direct Transport Costs,Licences,DVLA, 795.00 ,2014,4,
Central Services to the Public,Management & Support Services,Environmental,Transport Related Expenditure,Direct Transport Costs,MOT Tests,Vosa, 410.00 ,2014,4,
Central Services to the Public,Management & Support Services,Environmental,Transport Related Expenditure,Direct Transport Costs,Licences,DVLA, 142.50 ,2014,4,
Central Services to the Public,Management & Support Services,Estates and Economic Development ,Supplies & Services,"Equipment, Furniture & Materials",Purchase Equip + Materials,Pet Supermarket, 42.70 ,2014,5,
Central Services to the Public,Management & Support Services,Estates and Economic Development ,Supplies & Services,"Equipment, Furniture & Materials",Purchase Materials (Job Cost),C Brewer & Sons Ltd, 988.62 ,2014,5,
Central Services to the Public,Management & Support Services,Estates and Economic Development ,Supplies & Services,"Equipment, Furniture & Materials",Purchase Materials (Job Cost),Bss Group Plc, 138.26 ,2014,5,
Central Services to the Public,Management & Support Services,Estates and Economic Development ,Supplies & Services,"Equipment, Furniture & Materials",Purchase Materials (Job Cost),Buildbase Ltd, 10.98 ,2014,5,
Central Services to the Public,Management & Support Services,Estates and Economic Development ,Supplies & Services,"Equipment, Furniture & Materials",Purchase Materials (Job Cost),Edmundson Electrical Ltd, 780.56 ,2014,5,
Central Services to the Public,Management & Support Services,Estates and Economic Development ,Supplies & Services,"Equipment, Furniture & Materials",Purchase Materials (Job Cost),Screwfix Direct Ltd, 66.74 ,2014,5,
Central Services to the Public,Management & Support Services,Estates and Economic Development ,Supplies & Services,"Equipment, Furniture & Materials",Purchase Materials (Job Cost),Howdens Joinery Co, 447.93 ,2014,5,
Central Services to the Public,Management & Support Services,Estates and Economic Development ,Supplies & Services,"Equipment, Furniture & Materials",Purchase Materials (Job Cost),Newey & Eyre Ltd, 92.00 ,2014,5,
Central Services to the Public,Management & Support Services,Estates and Economic Development ,Supplies & Services,"Equipment, Furniture & Materials",Purchase Materials (Job Cost),Roland Security Llp, 287.95 ,2014,5,
Central Services to the Public,Management & Support Services,Estates and Economic Development ,Supplies & Services,"Equipment, Furniture & Materials",Purchase Materials (Job Cost),Travis Perkins Trading Co Ltd, 29.70 ,2014,5,
Central Services to the Public,Management & Support Services,Estates and Economic Development ,Supplies & Services,"Equipment, Furniture & Materials",Purchase Materials (Job Cost),Wolseley Uk Limited, 673.76 ,2014,5,
Central Services to the Public,Management & Support Services,Estates and Economic Development ,Supplies & Services,"Equipment, Furniture & Materials",Purchase Materials (Job Cost),Woodstock Plumbing & Heating Supp Ltd, 120.96 ,2014,5,
Central Services to the Public,Management & Support Services,Estates and Economic Development ,Supplies & Services,"Equipment, Furniture & Materials",Purchase Materials (Job Cost),Yesss Electrical, 469.70 ,2014,5,
Central Services to the Public,Management & Support Services,Estates and Economic Development ,Supplies & Services,"Equipment, Furniture & Materials",Purchase Equip + Materials,Edmundson Electrical Ltd, 74.71 ,2014,6,
Cultural & Related,Culture & Heritage,Estates and Economic Development ,Premises related Expenditure,Repairs Alterations & Maintenance of Buildings,Building Maint - Non Estates,The Range, 156.62 ,2014,6,
Central Services to the Public,Management & Support Services,Estates and Economic Development ,Supplies & Services,"Equipment, Furniture & Materials",Purchase Equip + Materials,Homebase Ltd, 11.07 ,2014,6,
Central Services to the Public,Management & Support Services,Estates and Economic Development ,Supplies & Services,"Equipment, Furniture & Materials",Purchase Equip + Materials,Pet Supermarket,-4.11 ,2014,6,
Central Services to the Public,Management & Support Services,Estates and Economic Development ,Supplies & Services,"Equipment, Furniture & Materials",Purchase Equip + Materials,Roland Security Llp, 13.55 ,2014,6,
Central Services to the Public,Management & Support Services,Estates and Economic Development ,Supplies & Services,"Equipment, Furniture & Materials",Purchase Equip + Materials,Office Furniture Online, 78.00 ,2014,6,
Central Services to the Public,Management & Support Services,Estates and Economic Development ,Supplies & Services,"Printing, Stationery & General Office Expenses",Stationery,AMAZON, 76.25 ,2014,6,
Central Services to the Public,Management & Support Services,Estates and Economic Development ,Supplies & Services,"Equipment, Furniture & Materials",Purchase Furniture,Ikea Ltd, 337.50 ,2014,6,
Central Services to the Public,Management & Support Services,Estates and Economic Development ,Supplies & Services,"Equipment, Furniture & Materials",Purchase Materials (Job Cost),C Brewer & Sons Ltd, 130.55 ,2014,6,
Central Services to the Public,Management & Support Services,Estates and Economic Development ,Supplies & Services,"Equipment, Furniture & Materials",Purchase Materials (Job Cost),C Brewer & Sons Ltd, 879.07 ,2014,6,
Central Services to the Public,Management & Support Services,Estates and Economic Development ,Supplies & Services,"Equipment, Furniture & Materials",Purchase Materials (Job Cost),Buildbase Ltd, 96.51 ,2014,6,
Central Services to the Public,Management & Support Services,Estates and Economic Development ,Supplies & Services,"Equipment, Furniture & Materials",Purchase Materials (Job Cost),Edmundson Electrical Ltd," 1,343.88 ",2014,6,
Central Services to the Public,Management & Support Services,Estates and Economic Development ,Supplies & Services,"Equipment, Furniture & Materials",Purchase Materials (Job Cost),Electric Water Heating Co., 31.02 ,2014,6,
Central Services to the Public,Management & Support Services,Estates and Economic Development ,Supplies & Services,"Equipment, Furniture & Materials",Purchase Materials (Job Cost),Screwfix Direct Ltd, 15.40 ,2014,6,
Central Services to the Public,Management & Support Services,Estates and Economic Development ,Supplies & Services,"Equipment, Furniture & Materials",Purchase Materials (Job Cost),Screwfix Direct Ltd, 9.41 ,2014,6,
Central Services to the Public,Management & Support Services,Estates and Economic Development ,Supplies & Services,"Equipment, Furniture & Materials",Purchase Materials (Job Cost),Hmg Coatings (South) Ltd, 19.06 ,2014,6,
Central Services to the Public,Management & Support Services,Estates and Economic Development ,Supplies & Services,"Equipment, Furniture & Materials",Purchase Materials (Job Cost),Howdens Joinery Co, 33.93 ,2014,6,
Central Services to the Public,Management & Support Services,Estates and Economic Development ,Supplies & Services,"Equipment, Furniture & Materials",Purchase Materials (Job Cost),Howdens Joinery Co, 428.64 ,2014,6,
Central Services to the Public,Management & Support Services,Estates and Economic Development ,Supplies & Services,"Equipment, Furniture & Materials",Purchase Materials (Job Cost),Romsey Home Hardware, 3.74 ,2014,6,
Central Services to the Public,Management & Support Services,Estates and Economic Development ,Supplies & Services,"Equipment, Furniture & Materials",Purchase Materials (Job Cost),Newey & Eyre Ltd, 86.89 ,2014,6,
Central Services to the Public,Management & Support Services,Estates and Economic Development ,Supplies & Services,"Equipment, Furniture & Materials",Purchase Materials (Job Cost),Roland Security Llp, 177.95 ,2014,6,
Central Services to the Public,Management & Support Services,Estates and Economic Development ,Supplies & Services,"Equipment, Furniture & Materials",Purchase Materials (Job Cost),Magrini Ltd, 216.00 ,2014,6,
Central Services to the Public,Management & Support Services,Estates and Economic Development ,Supplies & Services,"Equipment, Furniture & Materials",Purchase Materials (Job Cost),Scats Country Store, 3.96 ,2014,6,
Central Services to the Public,Management & Support Services,Estates and Economic Development ,Supplies & Services,"Equipment, Furniture & Materials",Purchase Materials (Job Cost),Travis Perkins Trading Co Ltd, 501.38 ,2014,6,
Central Services to the Public,Management & Support Services,Estates and Economic Development ,Supplies & Services,"Equipment, Furniture & Materials",Purchase Materials (Job Cost),Travis Perkins Trading Co Ltd, 603.81 ,2014,6,
Central Services to the Public,Management & Support Services,Estates and Economic Development ,Supplies & Services,"Equipment, Furniture & Materials",Purchase Materials (Job Cost),Wessex Fixings Ltd, 57.47 ,2014,6,
Central Services to the Public,Management & Support Services,Estates and Economic Development ,Supplies & Services,"Equipment, Furniture & Materials",Purchase Materials (Job Cost),Wessex Fixings Ltd, 60.59 ,2014,6,
Central Services to the Public,Management & Support Services,Estates and Economic Development ,Supplies & Services,"Equipment, Furniture & Materials",Purchase Materials (Job Cost),Wolseley Uk Limited," 1,067.41 ",2014,6,
Central Services to the Public,Management & Support Services,Estates and Economic Development ,Supplies & Services,"Equipment, Furniture & Materials",Purchase Materials (Job Cost),Woodstock Plumbing & Heating Supp Ltd, 52.52 ,2014,6,
Central Services to the Public,Management & Support Services,Estates and Economic Development ,Supplies & Services,"Equipment, Furniture & Materials",Purchase Materials (Job Cost),Andover Glass Works Ltd, 168.73 ,2014,6,
Central Services to the Public,Management & Support Services,Estates and Economic Development ,Supplies & Services,"Equipment, Furniture & Materials",Purchase Materials (Job Cost),Yesss Electrical, 89.14 ,2014,6,
Central Services to the Public,Management & Support Services,Estates and Economic Development ,Supplies & Services,"Equipment, Furniture & Materials",Purchase Materials (Job Cost),Yesss Electrical, 933.11 ,2014,6,
Housing Services,Homelessness,Housing and Environmental Health ,Supplies & Services,Miscellaneous Expenses,Bed & Breakfast,Days Inn, 65.00 ,2014,6,
"Highways, Roads & Transport",Parking Services,Plan Pol & Transport,Transport Related Expenditure,Direct Transport Costs,Repair Materials,J Davy Basingstoke, 35.01 ,2014,6,
Cultural & Related,Open Spaces,Environmental,Supplies & Services,"Equipment, Furniture & Materials",Purchase Equip + Materials,C Brewer & Sons Ltd, 170.69 ,2014,6,
Cultural & Related,Open Spaces,Environmental,Supplies & Services,"Equipment, Furniture & Materials",Purchase Equip + Materials,Screwfix Direct Ltd, 57.44 ,2014,6,
Cultural & Related,Open Spaces,Environmental,Supplies & Services,"Equipment, Furniture & Materials",Purchase Equip + Materials,Screwfix Direct Ltd, 51.85 ,2014,6,
Cultural & Related,Open Spaces,Environmental,Supplies & Services,"Equipment, Furniture & Materials",Purchase Tools,Screwfix Direct Ltd, 68.32 ,2014,6,
Cultural & Related,Open Spaces,Environmental,Supplies & Services,"Equipment, Furniture & Materials",Purchase Tools,Halfords Ltd, 14.97 ,2014,6,
Environmental & Regulatory,Street Cleansing (not chargeable to Highways),Environmental,Transport Related Expenditure,Direct Transport Costs,Materials for external clients,Belbins Garage, 45.00 ,2014,6,
Environmental & Regulatory,Street Cleansing (not chargeable to Highways),Environmental,Transport Related Expenditure,Direct Transport Costs,Licences,DVLA, 502.50 ,2014,6,
Environmental & Regulatory,Waste management,Environmental,Transport Related Expenditure,Direct Transport Costs,Repair Materials,Del Equipment (Uk) Ltd, 343.42 ,2014,6,
Environmental & Regulatory,Waste management,Environmental,Transport Related Expenditure,Direct Transport Costs,Licences,DVLA, 652.50 ,2014,6,
Central Services to the Public,Management & Support Services,Environmental,Supplies & Services,"Equipment, Furniture & Materials",Maintenance Equip + Materials,Continental Automotive Uk Ltd, 352.00 ,2014,6,
Central Services to the Public,Management & Support Services,Environmental,Supplies & Services,"Printing, Stationery & General Office Expenses",Stationery,Labels Online, 56.00 ,2014,6,
Central Services to the Public,Management & Support Services,Estates and Economic Development ,Supplies & Services,"Equipment, Furniture & Materials",Purchase Equip + Materials,Edmundson Electrical Ltd, 42.36 ,2014,7,
Central Services to the Public,Management & Support Services,Estates and Economic Development ,Supplies & Services,"Equipment, Furniture & Materials",Purchase Equip + Materials,Edmundson Electrical Ltd, 93.24 ,2014,7,
Central Services to the Public,Management & Support Services,Estates and Economic Development ,Transport Related Expenditure,Direct Transport Costs,Licences,DVLA, 455.00 ,2014,7,
Central Services to the Public,Management & Support Services,Estates and Economic Development ,Supplies & Services,"Equipment, Furniture & Materials",Purchase Materials (Job Cost),C Brewer & Sons Ltd," 1,005.34 ",2014,7,
Central Services to the Public,Management & Support Services,Estates and Economic Development ,Supplies & Services,"Equipment, Furniture & Materials",Purchase Materials (Job Cost),Michelmersh Brick & Tile Co Ltd, 99.00 ,2014,7,
Central Services to the Public,Management & Support Services,Estates and Economic Development ,Supplies & Services,"Equipment, Furniture & Materials",Purchase Materials (Job Cost),Edmundson Electrical Ltd," 1,560.21 ",2014,7,
Central Services to the Public,Management & Support Services,Estates and Economic Development ,Supplies & Services,"Equipment, Furniture & Materials",Purchase Materials (Job Cost),Electric Water Heating Co., 9.58 ,2014,7,
Central Services to the Public,Management & Support Services,Estates and Economic Development ,Supplies & Services,"Equipment, Furniture & Materials",Purchase Materials (Job Cost),Screwfix Direct Ltd, 38.86 ,2014,7,
Central Services to the Public,Management & Support Services,Estates and Economic Development ,Supplies & Services,"Equipment, Furniture & Materials",Purchase Materials (Job Cost),Newey & Eyre Ltd, 562.09 ,2014,7,
Central Services to the Public,Management & Support Services,Estates and Economic Development ,Supplies & Services,"Equipment, Furniture & Materials",Purchase Materials (Job Cost),Roland Security Llp, 21.86 ,2014,7,
Central Services to the Public,Management & Support Services,Estates and Economic Development ,Supplies & Services,"Equipment, Furniture & Materials",Purchase Materials (Job Cost),Ab Building Products Ltd, 119.52 ,2014,7,
Central Services to the Public,Management & Support Services,Estates and Economic Development ,Supplies & Services,"Equipment, Furniture & Materials",Purchase Materials (Job Cost),Travis Perkins Trading Co Ltd, 377.08 ,2014,7,
Central Services to the Public,Management & Support Services,Estates and Economic Development ,Supplies & Services,"Equipment, Furniture & Materials",Purchase Materials (Job Cost),Wessex Fixings Ltd, 166.62 ,2014,7,
Central Services to the Public,Management & Support Services,Estates and Economic Development ,Supplies & Services,"Equipment, Furniture & Materials",Purchase Materials (Job Cost),Wolseley Uk Limited, 533.75 ,2014,7,
Central Services to the Public,Management & Support Services,Estates and Economic Development ,Supplies & Services,"Equipment, Furniture & Materials",Purchase Materials (Job Cost),Woodstock Plumbing & Heating Supp Ltd, 131.21 ,2014,7,
Central Services to the Public,Management & Support Services,Estates and Economic Development ,Supplies & Services,"Equipment, Furniture & Materials",Purchase Materials (Job Cost),A.T.F Supplies, 149.58 ,2014,7,
Central Services to the Public,Management & Support Services,Estates and Economic Development ,Supplies & Services,"Equipment, Furniture & Materials",Purchase Materials (Job Cost),Dsg Retail Ltd, 91.66 ,2014,7,
Central Services to the Public,Management & Support Services,Estates and Economic Development ,Supplies & Services,"Equipment, Furniture & Materials",Purchase Materials (Job Cost),Yesss Electrical, 313.30 ,2014,7,
Central Services to the Public,Management & Support Services,Estates and Economic Development ,Supplies & Services,"Equipment, Furniture & Materials",Purchase Materials (Job Cost),Kew (Electrical Distributors) Limited, 3.73 ,2014,7,
Environmental & Regulatory,Regulatory Services,Housing and Environmental Health ,Transport Related Expenditure,Direct Transport Costs,Repair Materials,J Davy Basingstoke, 71.87 ,2014,7,
Housing Services,Homelessness,Housing and Environmental Health ,Supplies & Services,Miscellaneous Expenses,Bed & Breakfast,The Star And Garter, 41.62 ,2014,7,
Housing Services,Homelessness,Housing and Environmental Health ,Supplies & Services,Miscellaneous Expenses,Bed & Breakfast,Days Inn, 373.33 ,2014,7,
Cultural & Related,Open Spaces,Environmental,Supplies & Services,"Equipment, Furniture & Materials",Purchase Equip + Materials,C Brewer & Sons Ltd, 73.48 ,2014,7,
Cultural & Related,Open Spaces,Environmental,Supplies & Services,"Equipment, Furniture & Materials",Purchase Equip + Materials,Screwfix Direct Ltd, 21.22 ,2014,7,
Cultural & Related,Open Spaces,Environmental,Supplies & Services,"Equipment, Furniture & Materials",Purchase Equip + Materials,Argos Ltd, 118.73 ,2014,7,
Cultural & Related,Open Spaces,Environmental,Supplies & Services,"Equipment, Furniture & Materials",Maintenance Equip + Materials,Turnkey Instruments Ltd, 60.00 ,2014,7,
Environmental & Regulatory,Waste management,Environmental,Transport Related Expenditure,Direct Transport Costs,Repair Materials,J Davy Basingstoke, 52.54 ,2014,7,
Environmental & Regulatory,Waste management,Environmental,Transport Related Expenditure,Direct Transport Costs,Licences,Post Office Ltd, 227.50 ,2014,7,
Environmental & Regulatory,Waste management,Environmental,Transport Related Expenditure,Direct Transport Costs,Licences,DVLA," 3,430.00 ",2014,7,
Central Services to the Public,Management & Support Services,Environmental,Supplies & Services,Miscellaneous Expenses,Medical Fees,Charlton Hill Medical Ltd, 108.00 ,2014,7,
Central Services to the Public,Management & Support Services,Environmental,Transport Related Expenditure,Direct Transport Costs,Repair Materials,J Davy Basingstoke, 121.45 ,2014,7,
Central Services to the Public,Management & Support Services,Estates and Economic Development ,Supplies & Services,"Equipment, Furniture & Materials",Purchase Equip + Materials,Edmundson Electrical Ltd, 158.46 ,2014,8,
External Trading Accounts,Economic Development,Estates and Economic Development ,Supplies & Services,"Equipment, Furniture & Materials",Purchase Equip + Materials,2nd Sun Ltd T/A Wholesale Cigarette Bins, 145.45 ,2014,8,
Central Services to the Public,Management & Support Services,Estates and Economic Development ,Supplies & Services,"Equipment, Furniture & Materials",Purchase Equip + Materials,AMAZON, 38.53 ,2014,8,
Central Services to the Public,Management & Support Services,Estates and Economic Development ,Supplies & Services,"Equipment, Furniture & Materials",Purchase Materials (Job Cost),C Brewer & Sons Ltd," 1,180.86 ",2014,8,
Central Services to the Public,Management & Support Services,Estates and Economic Development ,Supplies & Services,"Equipment, Furniture & Materials",Purchase Materials (Job Cost),Buildbase Ltd, 63.60 ,2014,8,
Central Services to the Public,Management & Support Services,Estates and Economic Development ,Supplies & Services,"Equipment, Furniture & Materials",Purchase Materials (Job Cost),Tesco Stores Ltd, 2.50 ,2014,8,
Central Services to the Public,Management & Support Services,Estates and Economic Development ,Supplies & Services,"Equipment, Furniture & Materials",Purchase Materials (Job Cost),Edmundson Electrical Ltd," 1,408.63 ",2014,8,
Central Services to the Public,Management & Support Services,Estates and Economic Development ,Supplies & Services,"Equipment, Furniture & Materials",Purchase Materials (Job Cost),Electric Water Heating Co., 49.00 ,2014,8,
Central Services to the Public,Management & Support Services,Estates and Economic Development ,Supplies & Services,"Equipment, Furniture & Materials",Purchase Materials (Job Cost),Elliott Brothers Ltd, 9.62 ,2014,8,
Central Services to the Public,Management & Support Services,Estates and Economic Development ,Supplies & Services,"Equipment, Furniture & Materials",Purchase Materials (Job Cost),Screwfix Direct Ltd, 9.41 ,2014,8,
Central Services to the Public,Management & Support Services,Estates and Economic Development ,Supplies & Services,"Equipment, Furniture & Materials",Purchase Materials (Job Cost),Howdens Joinery Co, 21.87 ,2014,8,
Central Services to the Public,Management & Support Services,Estates and Economic Development ,Supplies & Services,"Equipment, Furniture & Materials",Purchase Materials (Job Cost),Jewson Ltd, 99.02 ,2014,8,
Central Services to the Public,Management & Support Services,Estates and Economic Development ,Supplies & Services,"Equipment, Furniture & Materials",Purchase Materials (Job Cost),Newey & Eyre Ltd, 37.19 ,2014,8,
Central Services to the Public,Management & Support Services,Estates and Economic Development ,Supplies & Services,"Equipment, Furniture & Materials",Purchase Materials (Job Cost),Roland Security Llp, 65.53 ,2014,8,
Central Services to the Public,Management & Support Services,Estates and Economic Development ,Supplies & Services,"Equipment, Furniture & Materials",Purchase Materials (Job Cost),Roland Security Llp, 23.55 ,2014,8,
Central Services to the Public,Management & Support Services,Estates and Economic Development ,Supplies & Services,"Equipment, Furniture & Materials",Purchase Materials (Job Cost),Ab Building Products Ltd, 49.92 ,2014,8,
Central Services to the Public,Management & Support Services,Estates and Economic Development ,Supplies & Services,"Equipment, Furniture & Materials",Purchase Materials (Job Cost),Ab Building Products Ltd, 20.80 ,2014,8,
Central Services to the Public,Management & Support Services,Estates and Economic Development ,Supplies & Services,"Equipment, Furniture & Materials",Purchase Materials (Job Cost),Magrini Ltd, 864.00 ,2014,8,
Central Services to the Public,Management & Support Services,Estates and Economic Development ,Supplies & Services,"Equipment, Furniture & Materials",Purchase Materials (Job Cost),Travis Perkins Trading Co Ltd, 420.60 ,2014,8,
Central Services to the Public,Management & Support Services,Estates and Economic Development ,Supplies & Services,"Equipment, Furniture & Materials",Purchase Materials (Job Cost),Travis Perkins Trading Co Ltd," 1,039.90 ",2014,8,
Central Services to the Public,Management & Support Services,Estates and Economic Development ,Supplies & Services,"Equipment, Furniture & Materials",Purchase Materials (Job Cost),Wessex Fixings Ltd, 80.17 ,2014,8,
Central Services to the Public,Management & Support Services,Estates and Economic Development ,Supplies & Services,"Equipment, Furniture & Materials",Purchase Materials (Job Cost),Wessex Fixings Ltd, 108.81 ,2014,8,
Central Services to the Public,Management & Support Services,Estates and Economic Development ,Supplies & Services,"Equipment, Furniture & Materials",Purchase Materials (Job Cost),Wolseley Uk Limited," 1,150.69 ",2014,8,
Central Services to the Public,Management & Support Services,Estates and Economic Development ,Supplies & Services,"Equipment, Furniture & Materials",Purchase Materials (Job Cost),Woodstock Plumbing & Heating Supp Ltd, 32.13 ,2014,8,
Central Services to the Public,Management & Support Services,Estates and Economic Development ,Supplies & Services,"Equipment, Furniture & Materials",Purchase Materials (Job Cost),A.T.F Supplies, 82.62 ,2014,8,
Central Services to the Public,Management & Support Services,Estates and Economic Development ,Supplies & Services,"Equipment, Furniture & Materials",Purchase Materials (Job Cost),Yesss Electrical, 817.19 ,2014,8,
Central Services to the Public,Management & Support Services,Estates and Economic Development ,Supplies & Services,"Equipment, Furniture & Materials",Purchase Materials (Job Cost),Toolstation Ltd, 9.15 ,2014,8,
Central Services to the Public,Management & Support Services,Estates and Economic Development ,Supplies & Services,"Equipment, Furniture & Materials",Maintenance Of Tools,AMAZON, 49.79 ,2014,8,
Environmental & Regulatory,Regulatory Services,Housing and Environmental Health ,Transport Related Expenditure,Direct Transport Costs,Repair Materials,J Davy Basingstoke, 24.50 ,2014,8,
Environmental & Regulatory,Regulatory Services,Housing and Environmental Health ,Transport Related Expenditure,Direct Transport Costs,Licences,DVLA, 455.00 ,2014,8,
Housing Services,Homelessness,Housing and Environmental Health ,Supplies & Services,Miscellaneous Expenses,Bed & Breakfast,Days Inn, 487.50 ,2014,8,
Cultural & Related,Open Spaces,Environmental,Transport Related Expenditure,Direct Transport Costs,Repair Materials,Warwick Trailers, 51.12 ,2014,8,
Cultural & Related,Open Spaces,Environmental,Supplies & Services,"Equipment, Furniture & Materials",Purchase Equip + Materials,C Brewer & Sons Ltd, 32.80 ,2014,8,
Cultural & Related,Open Spaces,Environmental,Supplies & Services,"Equipment, Furniture & Materials",Purchase Equip + Materials,Screwfix Direct Ltd, 150.71 ,2014,8,
Environmental & Regulatory,Street Cleansing (not chargeable to Highways),Environmental,Transport Related Expenditure,Direct Transport Costs,Licences,DVLA, 212.50 ,2014,8,
Environmental & Regulatory,Waste management,Environmental,Transport Related Expenditure,Direct Transport Costs,Licences,DVLA, 652.50 ,2014,8,
Central Services to the Public,Management & Support Services,Environmental,Supplies & Services,Miscellaneous Expenses,Medical Fees,Cotswold Medicals Ltd, 46.67 ,2014,8,
Environmental & Regulatory,Regulatory Services,Estates and Economic Development ,Transport Related Expenditure,Direct Transport Costs,Repair Materials,J Davy Basingstoke, 79.38 ,2014,9,
Housing Services,Homelessness,Housing and Environmental Health ,Supplies & Services,Miscellaneous Expenses,Bed & Breakfast,Days Inn, 162.50 ,2014,9,
Housing Services,Homelessness,Housing and Environmental Health ,Supplies & Services,Miscellaneous Expenses,Bed & Breakfast,Days Inn, 130.00 ,2014,9,
Cultural & Related,Open Spaces,Environmental,Transport Related Expenditure,Direct Transport Costs,Licences,DVLA," 2,047.50 ",2014,9,
Cultural & Related,Open Spaces,Environmental,Supplies & Services,"Equipment, Furniture & Materials",Purchase Equip + Materials,Screwfix Direct Ltd, 117.45 ,2014,9,
Cultural & Related,Open Spaces,Environmental,Supplies & Services,"Equipment, Furniture & Materials",Purchase Equip + Materials,Argos Ltd, 22.49 ,2014,9,
Environmental & Regulatory,Street Cleansing (not chargeable to Highways),Environmental,Transport Related Expenditure,Direct Transport Costs,Licences,DVLA," 1,365.00 ",2014,9,
Central Services to the Public,Management & Support Services,Environmental,Supplies & Services,Services,Training Courses,Premier Inn, 136.25 ,2014,9,
Central Services to the Public,Management & Support Services,Environmental,Supplies & Services,Catering,Catering,ASDA, 26.80 ,2014,9,
Central Services to the Public,Management & Support Services,Environmental,Supplies & Services,Catering,Catering,Booker Ltd, 110.87 ,2014,9,
Environmental & Regulatory,Waste management,Environmental,Transport Related Expenditure,Direct Transport Costs,Licences,DVLA, 652.50 ,2014,9,
Central Services to the Public,Management & Support Services,Environmental,Transport Related Expenditure,Direct Transport Costs,Licences,DVLA, 227.50 ,2014,9,
Central Services to the Public,Management & Support Services,Estates and Economic Development ,Supplies & Services,"Equipment, Furniture & Materials",Purchase Equip + Materials,AMAZON, 63.54 ,2014,10,
Cultural & Related,Culture & Heritage,Estates and Economic Development ,Supplies & Services,"Equipment, Furniture & Materials",Purchase Equip + Materials,AMAZON, 14.16 ,2014,10,
Central Services to the Public,Management & Support Services,Estates and Economic Development ,Supplies & Services,"Equipment, Furniture & Materials",Purchase Equip + Materials,Edmundson Electrical Ltd, 304.70 ,2014,10,
Central Services to the Public,Management & Support Services,Estates and Economic Development ,Supplies & Services,"Equipment, Furniture & Materials",Purchase Materials (Job Cost),Shoe Care, 11.67 ,2014,10,
Central Services to the Public,Management & Support Services,Estates and Economic Development ,Supplies & Services,"Equipment, Furniture & Materials",Purchase Materials (Job Cost),Steintec, 434.92 ,2014,10,
Central Services to the Public,Management & Support Services,Estates and Economic Development ,Supplies & Services,"Equipment, Furniture & Materials",Purchase Materials (Job Cost),C Brewer & Sons Ltd, 544.87 ,2014,10,
Central Services to the Public,Management & Support Services,Estates and Economic Development ,Supplies & Services,"Equipment, Furniture & Materials",Purchase Materials (Job Cost),Buildbase Ltd, 122.97 ,2014,10,
Central Services to the Public,Management & Support Services,Estates and Economic Development ,Supplies & Services,"Equipment, Furniture & Materials",Purchase Materials (Job Cost),Edmundson Electrical Ltd," 2,260.43 ",2014,10,
Central Services to the Public,Management & Support Services,Estates and Economic Development ,Supplies & Services,"Equipment, Furniture & Materials",Purchase Materials (Job Cost),Screwfix Direct Ltd, 12.49 ,2014,10,
Central Services to the Public,Management & Support Services,Estates and Economic Development ,Supplies & Services,"Equipment, Furniture & Materials",Purchase Materials (Job Cost),Howdens Joinery Co, 112.09 ,2014,10,
Central Services to the Public,Management & Support Services,Estates and Economic Development ,Supplies & Services,"Equipment, Furniture & Materials",Purchase Materials (Job Cost),Jewson Ltd, 56.25 ,2014,10,
Central Services to the Public,Management & Support Services,Estates and Economic Development ,Supplies & Services,"Equipment, Furniture & Materials",Purchase Materials (Job Cost),Roland Security Llp, 159.82 ,2014,10,
Central Services to the Public,Management & Support Services,Estates and Economic Development ,Supplies & Services,"Equipment, Furniture & Materials",Purchase Materials (Job Cost),Ab Building Products Ltd, 49.92 ,2014,10,
Central Services to the Public,Management & Support Services,Estates and Economic Development ,Supplies & Services,"Equipment, Furniture & Materials",Purchase Materials (Job Cost),Travis Perkins Trading Co Ltd, 316.22 ,2014,10,
Central Services to the Public,Management & Support Services,Estates and Economic Development ,Supplies & Services,"Equipment, Furniture & Materials",Purchase Materials (Job Cost),Wessex Fixings Ltd, 75.28 ,2014,10,
Central Services to the Public,Management & Support Services,Estates and Economic Development ,Supplies & Services,"Equipment, Furniture & Materials",Purchase Materials (Job Cost),Wolseley Uk Limited," 2,296.20 ",2014,10,
Central Services to the Public,Management & Support Services,Estates and Economic Development ,Supplies & Services,"Equipment, Furniture & Materials",Purchase Materials (Job Cost),Woodstock Plumbing & Heating Supp Ltd, 47.05 ,2014,10,
Central Services to the Public,Management & Support Services,Estates and Economic Development ,Supplies & Services,"Equipment, Furniture & Materials",Purchase Materials (Job Cost),AMAZON, 40.80 ,2014,10,
Central Services to the Public,Management & Support Services,Estates and Economic Development ,Supplies & Services,"Equipment, Furniture & Materials",Purchase Materials (Job Cost),Andover Glass Works Ltd, 61.47 ,2014,10,
Central Services to the Public,Management & Support Services,Estates and Economic Development ,Supplies & Services,"Equipment, Furniture & Materials",Purchase Materials (Job Cost),A.T.F Supplies, 77.24 ,2014,10,
Central Services to the Public,Management & Support Services,Estates and Economic Development ,Supplies & Services,"Equipment, Furniture & Materials",Purchase Materials (Job Cost),Ironmongery Direct Ltd, 21.70 ,2014,10,
Central Services to the Public,Management & Support Services,Estates and Economic Development ,Supplies & Services,"Equipment, Furniture & Materials",Purchase Materials (Job Cost),Yesss Electrical, 174.14 ,2014,10,
Central Services to the Public,Management & Support Services,Estates and Economic Development ,Supplies & Services,"Equipment, Furniture & Materials",Purchase Materials (Job Cost),Fire Seals Direct, 230.22 ,2014,10,
Central Services to the Public,Management & Support Services,Estates and Economic Development ,Supplies & Services,"Equipment, Furniture & Materials",Purchase Materials (Job Cost),Burton Roofing Merchants Ltd, 9.60 ,2014,10,
Central Services to the Public,Management & Support Services,Estates and Economic Development ,Supplies & Services,"Equipment, Furniture & Materials",Purchase Tools,Wessex Fixings Ltd, 15.08 ,2014,10,
Central Services to the Public,Management & Support Services,Estates and Economic Development ,Supplies & Services,"Equipment, Furniture & Materials",Purchase Equip + Materials,AMAZON, 13.20 ,2014,10,
Central Services to the Public,Management & Support Services,Estates and Economic Development ,Supplies & Services,"Equipment, Furniture & Materials",Purchase Equip + Materials,AMAZON, 4.95 ,2014,10,
Central Services to the Public,Management & Support Services,Estates and Economic Development ,Supplies & Services,"Equipment, Furniture & Materials",Purchase Equip + Materials,AMAZON, 26.85 ,2014,10,
Central Services to the Public,Management & Support Services,Estates and Economic Development ,Supplies & Services,"Equipment, Furniture & Materials",Purchase Equip + Materials,AMAZON, 9.90 ,2014,10,
Central Services to the Public,Management & Support Services,Estates and Economic Development ,Supplies & Services,"Equipment, Furniture & Materials",Purchase Equip + Materials,AMAZON, 25.10 ,2014,10,
Central Services to the Public,Management & Support Services,Estates and Economic Development ,Supplies & Services,"Equipment, Furniture & Materials",Purchase Materials (Job Cost),Martins of Andover, 20.00 ,2014,10,
Central Services to the Public,Management & Support Services,Estates and Economic Development ,Supplies & Services,"Equipment, Furniture & Materials",Purchase Materials (Job Cost),Newey & Eyre Ltd, 6.34 ,2014,10,
Central Services to the Public,Management & Support Services,Estates and Economic Development ,Supplies & Services,"Equipment, Furniture & Materials",Purchase Materials (Job Cost),Yesss Electrical, 9.98 ,2014,10,
Central Services to the Public,Management & Support Services,Estates and Economic Development ,Supplies & Services,"Equipment, Furniture & Materials",Purchase Equip + Materials,Screwfix Direct Ltd, 33.27 ,2014,10,
Central Services to the Public,Management & Support Services,Estates and Economic Development ,Supplies & Services,"Equipment, Furniture & Materials",Purchase Equip + Materials,Screwfix Direct Ltd,-4.16 ,2014,10,
Central Services to the Public,Management & Support Services,Estates and Economic Development ,Supplies & Services,"Equipment, Furniture & Materials",Purchase Materials (Job Cost),Edmundson Electrical Ltd, 44.06 ,2014,10,
Central Services to the Public,Management & Support Services,Estates and Economic Development ,Supplies & Services,"Equipment, Furniture & Materials",Purchase Materials (Job Cost),Yesss Electrical, 6.42 ,2014,10,
Central Services to the Public,Management & Support Services,Estates and Economic Development ,Supplies & Services,"Equipment, Furniture & Materials",Purchase Materials (Job Cost),Edmundson Electrical Ltd, 15.45 ,2014,10,
Central Services to the Public,Management & Support Services,Estates and Economic Development ,Supplies & Services,"Equipment, Furniture & Materials",Purchase Materials (Job Cost),Yesss Electrical, 13.13 ,2014,10,
Central Services to the Public,Management & Support Services,Estates and Economic Development ,Supplies & Services,"Equipment, Furniture & Materials",Purchase Materials (Job Cost),Yesss Electrical, 6.60 ,2014,10,
Central Services to the Public,Management & Support Services,Estates and Economic Development ,Supplies & Services,"Equipment, Furniture & Materials",Purchase Materials (Job Cost),Edmundson Electrical Ltd, 52.06 ,2014,10,
Central Services to the Public,Management & Support Services,Estates and Economic Development ,Supplies & Services,"Equipment, Furniture & Materials",Purchase Materials (Job Cost),Edmundson Electrical Ltd, 2.84 ,2014,10,
Central Services to the Public,Management & Support Services,Estates and Economic Development ,Supplies & Services,"Equipment, Furniture & Materials",Purchase Materials (Job Cost),Edmundson Electrical Ltd, 46.02 ,2014,10,
Central Services to the Public,Management & Support Services,Estates and Economic Development ,Supplies & Services,"Equipment, Furniture & Materials",Purchase Materials (Job Cost),Edmundson Electrical Ltd, 20.48 ,2014,10,
Central Services to the Public,Management & Support Services,Estates and Economic Development ,Supplies & Services,"Equipment, Furniture & Materials",Purchase Materials (Job Cost),Yesss Electrical, 55.73 ,2014,10,
Central Services to the Public,Management & Support Services,Estates and Economic Development ,Supplies & Services,"Equipment, Furniture & Materials",Purchase Materials (Job Cost),Edmundson Electrical Ltd, 9.80 ,2014,10,
Central Services to the Public,Management & Support Services,Estates and Economic Development ,Supplies & Services,"Equipment, Furniture & Materials",Purchase Materials (Job Cost),Edmundson Electrical Ltd, 10.48 ,2014,10,
Central Services to the Public,Management & Support Services,Estates and Economic Development ,Supplies & Services,"Equipment, Furniture & Materials",Purchase Materials (Job Cost),Edmundson Electrical Ltd, 7.18 ,2014,10,
Central Services to the Public,Management & Support Services,Estates and Economic Development ,Supplies & Services,"Equipment, Furniture & Materials",Purchase Materials (Job Cost),Yesss Electrical, 23.86 ,2014,10,
Central Services to the Public,Management & Support Services,Estates and Economic Development ,Supplies & Services,"Equipment, Furniture & Materials",Purchase Materials (Job Cost),Yesss Electrical, 5.32 ,2014,10,
Central Services to the Public,Management & Support Services,Estates and Economic Development ,Supplies & Services,"Equipment, Furniture & Materials",Purchase Materials (Job Cost),Yesss Electrical, 24.35 ,2014,10,
Central Services to the Public,Management & Support Services,Estates and Economic Development ,Supplies & Services,"Equipment, Furniture & Materials",Purchase Materials (Job Cost),Edmundson Electrical Ltd, 85.00 ,2014,10,
Central Services to the Public,Management & Support Services,Estates and Economic Development ,Supplies & Services,"Equipment, Furniture & Materials",Purchase Materials (Job Cost),Edmundson Electrical Ltd, 115.59 ,2014,10,
Central Services to the Public,Management & Support Services,Estates and Economic Development ,Supplies & Services,"Equipment, Furniture & Materials",Purchase Materials (Job Cost),Edmundson Electrical Ltd, 16.00 ,2014,10,
Central Services to the Public,Management & Support Services,Estates and Economic Development ,Supplies & Services,"Equipment, Furniture & Materials",Purchase Materials (Job Cost),Yesss Electrical, 4.31 ,2014,10,
Central Services to the Public,Management & Support Services,Estates and Economic Development ,Supplies & Services,"Equipment, Furniture & Materials",Purchase Materials (Job Cost),Yesss Electrical, 57.00 ,2014,10,
Central Services to the Public,Management & Support Services,Estates and Economic Development ,Supplies & Services,"Equipment, Furniture & Materials",Purchase Materials (Job Cost),Edmundson Electrical Ltd, 45.15 ,2014,10,
Central Services to the Public,Management & Support Services,Estates and Economic Development ,Supplies & Services,"Equipment, Furniture & Materials",Purchase Materials (Job Cost),Wolseley Uk Limited, 12.05 ,2014,10,
Central Services to the Public,Management & Support Services,Estates and Economic Development ,Supplies & Services,"Equipment, Furniture & Materials",Purchase Materials (Job Cost),Yesss Electrical, 16.50 ,2014,10,
Central Services to the Public,Management & Support Services,Estates and Economic Development ,Supplies & Services,"Equipment, Furniture & Materials",Purchase Materials (Job Cost),Yesss Electrical, 92.64 ,2014,10,
Central Services to the Public,Management & Support Services,Estates and Economic Development ,Supplies & Services,"Equipment, Furniture & Materials",Purchase Materials (Job Cost),Edmundson Electrical Ltd, 5.62 ,2014,10,
Central Services to the Public,Management & Support Services,Estates and Economic Development ,Supplies & Services,Miscellaneous Expenses,Election Fees,Yesss Electrical, 17.64 ,2014,10,
Central Services to the Public,Management & Support Services,Estates and Economic Development ,Supplies & Services,"Equipment, Furniture & Materials",Purchase Materials (Job Cost),Yesss Electrical, 122.50 ,2014,10,
Central Services to the Public,Management & Support Services,Estates and Economic Development ,Supplies & Services,"Equipment, Furniture & Materials",Purchase Materials (Job Cost),Edmundson Electrical Ltd, 26.20 ,2014,10,
Central Services to the Public,Management & Support Services,Estates and Economic Development ,Supplies & Services,"Equipment, Furniture & Materials",Purchase Materials (Job Cost),Yesss Electrical, 40.43 ,2014,10,
Central Services to the Public,Management & Support Services,Estates and Economic Development ,Supplies & Services,"Equipment, Furniture & Materials",Purchase Materials (Job Cost),Yesss Electrical, 13.85 ,2014,10,
Central Services to the Public,Management & Support Services,Estates and Economic Development ,Supplies & Services,"Equipment, Furniture & Materials",Purchase Materials (Job Cost),Travis Perkins Trading Co Ltd, 21.74 ,2014,10,
Central Services to the Public,Management & Support Services,Estates and Economic Development ,Supplies & Services,"Equipment, Furniture & Materials",Purchase Materials (Job Cost),Travis Perkins Trading Co Ltd, 27.29 ,2014,10,
Central Services to the Public,Management & Support Services,Estates and Economic Development ,Supplies & Services,"Equipment, Furniture & Materials",Purchase Materials (Job Cost),Travis Perkins Trading Co Ltd, 31.77 ,2014,10,
Central Services to the Public,Management & Support Services,Estates and Economic Development ,Supplies & Services,"Equipment, Furniture & Materials",Purchase Materials (Job Cost),Elliott Brothers Ltd, 6.66 ,2014,10,
Central Services to the Public,Management & Support Services,Estates and Economic Development ,Supplies & Services,"Equipment, Furniture & Materials",Purchase Materials (Job Cost),Travis Perkins Trading Co Ltd, 7.95 ,2014,10,
Central Services to the Public,Management & Support Services,Estates and Economic Development ,Supplies & Services,"Equipment, Furniture & Materials",Purchase Materials (Job Cost),Travis Perkins Trading Co Ltd, 34.85 ,2014,10,
Central Services to the Public,Management & Support Services,Estates and Economic Development ,Supplies & Services,"Equipment, Furniture & Materials",Purchase Materials (Job Cost),Travis Perkins Trading Co Ltd, 79.99 ,2014,10,
Central Services to the Public,Management & Support Services,Estates and Economic Development ,Supplies & Services,"Equipment, Furniture & Materials",Purchase Materials (Job Cost),Howdens Joinery Co, 17.28 ,2014,10,
Central Services to the Public,Management & Support Services,Estates and Economic Development ,Supplies & Services,"Equipment, Furniture & Materials",Purchase Materials (Job Cost),Michelmersh Brick & Tile Co Ltd, 12.72 ,2014,10,
Central Services to the Public,Management & Support Services,Estates and Economic Development ,Supplies & Services,"Equipment, Furniture & Materials",Purchase Materials (Job Cost),Travis Perkins Trading Co Ltd, 22.99 ,2014,10,
Central Services to the Public,Management & Support Services,Estates and Economic Development ,Supplies & Services,"Equipment, Furniture & Materials",Purchase Materials (Job Cost),A.T.F Supplies, 168.47 ,2014,10,
Central Services to the Public,Management & Support Services,Estates and Economic Development ,Supplies & Services,"Equipment, Furniture & Materials",Purchase Materials (Job Cost),Roland Security Llp, 9.42 ,2014,10,
Central Services to the Public,Management & Support Services,Estates and Economic Development ,Supplies & Services,"Equipment, Furniture & Materials",Purchase Materials (Job Cost),Travis Perkins Trading Co Ltd, 6.40 ,2014,10,
Central Services to the Public,Management & Support Services,Estates and Economic Development ,Supplies & Services,"Equipment, Furniture & Materials",Purchase Materials (Job Cost),Buildbase Ltd, 4.40 ,2014,10,
Central Services to the Public,Management & Support Services,Estates and Economic Development ,Supplies & Services,"Equipment, Furniture & Materials",Purchase Materials (Job Cost),A.T.F Supplies, 11.34 ,2014,10,
Central Services to the Public,Management & Support Services,Estates and Economic Development ,Supplies & Services,"Equipment, Furniture & Materials",Purchase Materials (Job Cost),A.T.F Supplies, 80.67 ,2014,10,
Central Services to the Public,Management & Support Services,Estates and Economic Development ,Supplies & Services,"Equipment, Furniture & Materials",Purchase Materials (Job Cost),C Brewer & Sons Ltd, 317.37 ,2014,10,
Central Services to the Public,Management & Support Services,Estates and Economic Development ,Supplies & Services,"Clothes, Uniforms & Laundry",Clothing + Uniforms,C Brewer & Sons Ltd, 19.99 ,2014,10,
Central Services to the Public,Management & Support Services,Estates and Economic Development ,Supplies & Services,"Equipment, Furniture & Materials",Purchase Materials (Job Cost),C Brewer & Sons Ltd, 13.78 ,2014,10,
Central Services to the Public,Management & Support Services,Estates and Economic Development ,Supplies & Services,"Equipment, Furniture & Materials",Purchase Materials (Job Cost),C Brewer & Sons Ltd, 13.79 ,2014,10,
Central Services to the Public,Management & Support Services,Estates and Economic Development ,Supplies & Services,"Equipment, Furniture & Materials",Purchase Materials (Job Cost),Jewson Ltd, 5.29 ,2014,10,
Central Services to the Public,Management & Support Services,Estates and Economic Development ,Supplies & Services,"Equipment, Furniture & Materials",Purchase Materials (Job Cost),C Brewer & Sons Ltd, 124.63 ,2014,10,
Central Services to the Public,Management & Support Services,Estates and Economic Development ,Supplies & Services,"Equipment, Furniture & Materials",Purchase Materials (Job Cost),C Brewer & Sons Ltd, 80.49 ,2014,10,
Central Services to the Public,Management & Support Services,Estates and Economic Development ,Supplies & Services,"Equipment, Furniture & Materials",Purchase Materials (Job Cost),C Brewer & Sons Ltd, 243.48 ,2014,10,
Central Services to the Public,Management & Support Services,Estates and Economic Development ,Supplies & Services,"Equipment, Furniture & Materials",Purchase Materials (Job Cost),Woodstock Plumbing & Heating Supp Ltd, 17.20 ,2014,10,
Central Services to the Public,Management & Support Services,Estates and Economic Development ,Supplies & Services,"Equipment, Furniture & Materials",Purchase Materials (Job Cost),Woodstock Plumbing & Heating Supp Ltd, 9.39 ,2014,10,
Central Services to the Public,Management & Support Services,Estates and Economic Development ,Supplies & Services,"Equipment, Furniture & Materials",Purchase Materials (Job Cost),Wolseley Uk Limited, 16.98 ,2014,10,
Central Services to the Public,Management & Support Services,Estates and Economic Development ,Supplies & Services,"Equipment, Furniture & Materials",Purchase Materials (Job Cost),Wolseley Uk Limited, 20.07 ,2014,10,
Central Services to the Public,Management & Support Services,Estates and Economic Development ,Supplies & Services,"Equipment, Furniture & Materials",Purchase Materials (Job Cost),Wolseley Uk Limited, 19.70 ,2014,10,
Central Services to the Public,Management & Support Services,Estates and Economic Development ,Supplies & Services,"Equipment, Furniture & Materials",Purchase Materials (Job Cost),Wolseley Uk Limited, 67.48 ,2014,10,
Central Services to the Public,Management & Support Services,Estates and Economic Development ,Supplies & Services,"Equipment, Furniture & Materials",Purchase Materials (Job Cost),Wolseley Uk Limited, 16.98 ,2014,10,
Central Services to the Public,Management & Support Services,Estates and Economic Development ,Supplies & Services,"Equipment, Furniture & Materials",Purchase Materials (Job Cost),Wolseley Uk Limited, 31.98 ,2014,10,
Central Services to the Public,Management & Support Services,Estates and Economic Development ,Supplies & Services,"Equipment, Furniture & Materials",Purchase Materials (Job Cost),Wolseley Uk Limited, 64.77 ,2014,10,
Central Services to the Public,Management & Support Services,Estates and Economic Development ,Supplies & Services,"Equipment, Furniture & Materials",Purchase Materials (Job Cost),Wolseley Uk Limited, 460.08 ,2014,10,
Central Services to the Public,Management & Support Services,Estates and Economic Development ,Supplies & Services,"Equipment, Furniture & Materials",Purchase Materials (Job Cost),Wolseley Uk Limited, 132.81 ,2014,10,
Central Services to the Public,Management & Support Services,Estates and Economic Development ,Supplies & Services,"Equipment, Furniture & Materials",Purchase Materials (Job Cost),Wolseley Uk Limited, 48.67 ,2014,10,
Central Services to the Public,Management & Support Services,Estates and Economic Development ,Supplies & Services,"Equipment, Furniture & Materials",Purchase Materials (Job Cost),Wolseley Uk Limited, 61.89 ,2014,10,
Central Services to the Public,Management & Support Services,Estates and Economic Development ,Supplies & Services,"Equipment, Furniture & Materials",Purchase Materials (Job Cost),Howdens Joinery Co, 291.42 ,2014,10,
Central Services to the Public,Management & Support Services,Estates and Economic Development ,Supplies & Services,"Equipment, Furniture & Materials",Purchase Materials (Job Cost),Wolseley Uk Limited, 483.89 ,2014,10,
Central Services to the Public,Management & Support Services,Estates and Economic Development ,Supplies & Services,"Equipment, Furniture & Materials",Purchase Materials (Job Cost),Wolseley Uk Limited, 47.81 ,2014,10,
Central Services to the Public,Management & Support Services,Estates and Economic Development ,Supplies & Services,"Equipment, Furniture & Materials",Purchase Materials (Job Cost),Wolseley Uk Limited, 512.50 ,2014,10,
Central Services to the Public,Management & Support Services,Estates and Economic Development ,Supplies & Services,"Equipment, Furniture & Materials",Purchase Materials (Job Cost),Woodstock Plumbing & Heating Supp Ltd, 33.38 ,2014,10,
Central Services to the Public,Management & Support Services,Estates and Economic Development ,Supplies & Services,"Equipment, Furniture & Materials",Purchase Materials (Job Cost),Woodstock Plumbing & Heating Supp Ltd, 30.39 ,2014,10,
Central Services to the Public,Management & Support Services,Estates and Economic Development ,Supplies & Services,"Equipment, Furniture & Materials",Purchase Materials (Job Cost),Wolseley Uk Limited, 47.38 ,2014,10,
Central Services to the Public,Management & Support Services,Estates and Economic Development ,Supplies & Services,"Equipment, Furniture & Materials",Purchase Materials (Job Cost),Wolseley Uk Limited, 15.80 ,2014,10,
Central Services to the Public,Management & Support Services,Estates and Economic Development ,Supplies & Services,"Equipment, Furniture & Materials",Purchase Materials (Job Cost),Wolseley Uk Limited, 20.09 ,2014,10,
Central Services to the Public,Management & Support Services,Estates and Economic Development ,Supplies & Services,"Equipment, Furniture & Materials",Purchase Materials (Job Cost),Electric Water Heating Co., 40.01 ,2014,10,
Central Services to the Public,Management & Support Services,Estates and Economic Development ,Supplies & Services,"Equipment, Furniture & Materials",Purchase Materials (Job Cost),Woodstock Plumbing & Heating Supp Ltd, 15.06 ,2014,10,
Central Services to the Public,Management & Support Services,Estates and Economic Development ,Supplies & Services,"Equipment, Furniture & Materials",Purchase Materials (Job Cost),Woodstock Plumbing & Heating Supp Ltd, 6.96 ,2014,10,
Central Services to the Public,Management & Support Services,Estates and Economic Development ,Supplies & Services,"Equipment, Furniture & Materials",Purchase Materials (Job Cost),Woodstock Plumbing & Heating Supp Ltd, 25.46 ,2014,10,
Central Services to the Public,Management & Support Services,Estates and Economic Development ,Supplies & Services,"Equipment, Furniture & Materials",Purchase Materials (Job Cost),Wolseley Uk Limited, 70.67 ,2014,10,
Central Services to the Public,Management & Support Services,Estates and Economic Development ,Supplies & Services,"Equipment, Furniture & Materials",Purchase Materials (Job Cost),Wessex Fixings Ltd, 70.10 ,2014,10,
Central Services to the Public,Management & Support Services,Estates and Economic Development ,Supplies & Services,"Equipment, Furniture & Materials",Purchase Materials (Job Cost),Travis Perkins Trading Co Ltd, 27.52 ,2014,10,
Central Services to the Public,Management & Support Services,Estates and Economic Development ,Supplies & Services,"Equipment, Furniture & Materials",Purchase Materials (Job Cost),Yesss Electrical, 34.50 ,2014,10,
Central Services to the Public,Management & Support Services,Estates and Economic Development ,Supplies & Services,"Equipment, Furniture & Materials",Purchase Materials (Job Cost),Wolseley Uk Limited, 50.41 ,2014,10,
Central Services to the Public,Management & Support Services,Estates and Economic Development ,Supplies & Services,"Equipment, Furniture & Materials",Purchase Materials (Job Cost),Wolseley Uk Limited, 17.39 ,2014,10,
Central Services to the Public,Management & Support Services,Estates and Economic Development ,Supplies & Services,"Equipment, Furniture & Materials",Purchase Materials (Job Cost),Wolseley Uk Limited, 5.11 ,2014,10,
Central Services to the Public,Management & Support Services,Estates and Economic Development ,Supplies & Services,"Equipment, Furniture & Materials",Purchase Materials (Job Cost),Martins of Andover, 50.00 ,2014,10,
Central Services to the Public,Management & Support Services,Estates and Economic Development ,Supplies & Services,"Equipment, Furniture & Materials",Purchase Materials (Job Cost),Wolseley Uk Limited, 42.56 ,2014,10,
Central Services to the Public,Management & Support Services,Estates and Economic Development ,Supplies & Services,"Equipment, Furniture & Materials",Purchase Materials (Job Cost),Wolseley Uk Limited, 21.28 ,2014,10,
Central Services to the Public,Management & Support Services,Estates and Economic Development ,Supplies & Services,"Equipment, Furniture & Materials",Purchase Materials (Job Cost),Wolseley Uk Limited, 85.11 ,2014,10,
Central Services to the Public,Management & Support Services,Estates and Economic Development ,Supplies & Services,"Equipment, Furniture & Materials",Purchase Materials (Job Cost),Wessex Fixings Ltd, 35.06 ,2014,10,
Central Services to the Public,Management & Support Services,Estates and Economic Development ,Supplies & Services,"Equipment, Furniture & Materials",Purchase Materials (Job Cost),Travis Perkins Trading Co Ltd, 52.71 ,2014,10,
Central Services to the Public,Management & Support Services,Estates and Economic Development ,Supplies & Services,"Equipment, Furniture & Materials",Purchase Materials (Job Cost),Roland Security Llp, 1.06 ,2014,10,
Central Services to the Public,Management & Support Services,Estates and Economic Development ,Supplies & Services,"Equipment, Furniture & Materials",Purchase Materials (Job Cost),Roland Security Llp, 11.20 ,2014,10,
Central Services to the Public,Management & Support Services,Estates and Economic Development ,Supplies & Services,"Equipment, Furniture & Materials",Purchase Materials (Job Cost),Travis Perkins Trading Co Ltd, 9.10 ,2014,10,
Central Services to the Public,Management & Support Services,Estates and Economic Development ,Supplies & Services,"Equipment, Furniture & Materials",Purchase Materials (Job Cost),Andover Glass Works Ltd, 8.33 ,2014,10,
Central Services to the Public,Management & Support Services,Estates and Economic Development ,Supplies & Services,"Equipment, Furniture & Materials",Purchase Materials (Job Cost),Buildbase Ltd, 60.76 ,2014,10,
Central Services to the Public,Management & Support Services,Estates and Economic Development ,Supplies & Services,"Equipment, Furniture & Materials",Purchase Materials (Job Cost),Travis Perkins Trading Co Ltd, 14.76 ,2014,10,
Central Services to the Public,Management & Support Services,Estates and Economic Development ,Supplies & Services,"Equipment, Furniture & Materials",Purchase Materials (Job Cost),Travis Perkins Trading Co Ltd, 2.40 ,2014,10,
Central Services to the Public,Management & Support Services,Estates and Economic Development ,Supplies & Services,"Equipment, Furniture & Materials",Purchase Materials (Job Cost),Roland Security Llp, 16.00 ,2014,10,
Central Services to the Public,Management & Support Services,Estates and Economic Development ,Supplies & Services,"Equipment, Furniture & Materials",Purchase Equip + Materials,C & M DIY Centre, 8.48 ,2014,10,
Central Services to the Public,Management & Support Services,Estates and Economic Development ,Supplies & Services,"Equipment, Furniture & Materials",Purchase Materials (Job Cost),Martins of Andover, 20.00 ,2014,10,
Central Services to the Public,Management & Support Services,Estates and Economic Development ,Supplies & Services,"Equipment, Furniture & Materials",Purchase Materials (Job Cost),C Brewer & Sons Ltd, 239.72 ,2014,10,
Central Services to the Public,Management & Support Services,Estates and Economic Development ,Supplies & Services,"Equipment, Furniture & Materials",Purchase Materials (Job Cost),C Brewer & Sons Ltd, 22.04 ,2014,10,
Central Services to the Public,Management & Support Services,Estates and Economic Development ,Supplies & Services,"Equipment, Furniture & Materials",Purchase Materials (Job Cost),C Brewer & Sons Ltd, 289.20 ,2014,10,
Environmental & Regulatory,Street Cleansing (not chargeable to Highways),Environmental,Supplies & Services,"Equipment, Furniture & Materials",Purchase Equip + Materials,Screwfix Direct Ltd, 81.08 ,2014,10,
Environmental & Regulatory,Street Cleansing (not chargeable to Highways),Environmental,Supplies & Services,"Equipment, Furniture & Materials",Purchase Equip + Materials,Screwfix Direct Ltd, 12.48 ,2014,10,
Environmental & Regulatory,Street Cleansing (not chargeable to Highways),Environmental,Supplies & Services,"Equipment, Furniture & Materials",Purchase Equip + Materials,Screwfix Direct Ltd, 129.83 ,2014,10,
Environmental & Regulatory,Street Cleansing (not chargeable to Highways),Environmental,Supplies & Services,"Equipment, Furniture & Materials",Purchase Equip + Materials,Screwfix Direct Ltd, 16.65 ,2014,10,
"Highways, Roads & Transport",Parking Services,Plan Pol & Transport,Transport Related Expenditure,Direct Transport Costs,Licences,DVLA, 227.50 ,2014,10,
Environmental & Regulatory,Street Cleansing (not chargeable to Highways),Environmental,Transport Related Expenditure,Direct Transport Costs,Licences,DVLA, 167.50 ,2014,10,
Environmental & Regulatory,Street Cleansing (not chargeable to Highways),Environmental,Transport Related Expenditure,Direct Transport Costs,Licences,DVLA, 167.50 ,2014,10,
Environmental & Regulatory,Waste management,Environmental,Transport Related Expenditure,Direct Transport Costs,Licences,DVLA, 167.50 ,2014,10,
Environmental & Regulatory,Street Cleansing (not chargeable to Highways),Environmental,Transport Related Expenditure,Direct Transport Costs,Licences,DVLA, 167.50 ,2014,10,
Environmental & Regulatory,Street Cleansing (not chargeable to Highways),Environmental,Transport Related Expenditure,Direct Transport Costs,Licences,DVLA, 167.50 ,2014,10,
Environmental & Regulatory,Regulatory Services,Housing and Environmental Health ,Transport Related Expenditure,Direct Transport Costs,Licences,DVLA, 227.50 ,2014,10,
Environmental & Regulatory,Waste management,Environmental,Transport Related Expenditure,Direct Transport Costs,Licences,DVLA, 652.50 ,2014,10,
Environmental & Regulatory,Waste management,Environmental,Transport Related Expenditure,Direct Transport Costs,Repair Materials,Tow-Trust Towbars Ltd, 95.39 ,2014,10,
Central Services to the Public,Management & Support Services,Estates and Economic Development ,Supplies & Services,"Equipment, Furniture & Materials",Purchase Materials (Job Cost),AMAZON, 101.94 ,2014,11,
Central Services to the Public,Management & Support Services,Estates and Economic Development ,Supplies & Services,"Equipment, Furniture & Materials",Purchase Materials (Job Cost),Screwfix Direct Ltd, 7.50 ,2014,11,
Central Services to the Public,Management & Support Services,Estates and Economic Development ,Supplies & Services,"Clothes, Uniforms & Laundry",Clothing + Uniforms,Screwfix Direct Ltd, 7.50 ,2014,11,
Central Services to the Public,Management & Support Services,Estates and Economic Development ,Supplies & Services,"Equipment, Furniture & Materials",Purchase Equip + Materials,Screwfix Direct Ltd, 12.48 ,2014,11,
Central Services to the Public,Management & Support Services,Estates and Economic Development ,Supplies & Services,"Equipment, Furniture & Materials",Purchase Materials (Job Cost),Edmundson Electrical Ltd, 27.42 ,2014,11,
Central Services to the Public,Management & Support Services,Estates and Economic Development ,Supplies & Services,"Equipment, Furniture & Materials",Purchase Materials (Job Cost),Newey & Eyre Ltd, 33.80 ,2014,11,
Central Services to the Public,Management & Support Services,Estates and Economic Development ,Supplies & Services,"Equipment, Furniture & Materials",Purchase Materials (Job Cost),Newey & Eyre Ltd, 15.50 ,2014,11,
Central Services to the Public,Management & Support Services,Estates and Economic Development ,Supplies & Services,"Equipment, Furniture & Materials",Purchase Materials (Job Cost),Edmundson Electrical Ltd, 5.76 ,2014,11,
Central Services to the Public,Management & Support Services,Estates and Economic Development ,Supplies & Services,"Equipment, Furniture & Materials",Purchase Materials (Job Cost),Newey & Eyre Ltd, 87.00 ,2014,11,
Central Services to the Public,Management & Support Services,Estates and Economic Development ,Supplies & Services,"Equipment, Furniture & Materials",Purchase Materials (Job Cost),Newey & Eyre Ltd, 16.00 ,2014,11,
Central Services to the Public,Management & Support Services,Estates and Economic Development ,Supplies & Services,"Equipment, Furniture & Materials",Purchase Equip + Materials,Screwfix Direct Ltd, 20.80 ,2014,11,
Central Services to the Public,Management & Support Services,Estates and Economic Development ,Supplies & Services,"Equipment, Furniture & Materials",Purchase Materials (Job Cost),Edmundson Electrical Ltd, 24.50 ,2014,11,
Central Services to the Public,Management & Support Services,Estates and Economic Development ,Supplies & Services,"Equipment, Furniture & Materials",Purchase Materials (Job Cost),Newey & Eyre Ltd, 4.50 ,2014,11,
Central Services to the Public,Management & Support Services,Estates and Economic Development ,Supplies & Services,"Equipment, Furniture & Materials",Purchase Materials (Job Cost),Wessex Fixings Ltd, 10.14 ,2014,11,
Central Services to the Public,Management & Support Services,Estates and Economic Development ,Supplies & Services,"Equipment, Furniture & Materials",Purchase Materials (Job Cost),Edmundson Electrical Ltd, 367.45 ,2014,11,
Central Services to the Public,Management & Support Services,Estates and Economic Development ,Supplies & Services,"Equipment, Furniture & Materials",Purchase Materials (Job Cost),Yesss Electrical, 13.82 ,2014,11,
Central Services to the Public,Management & Support Services,Estates and Economic Development ,Supplies & Services,"Equipment, Furniture & Materials",Purchase Materials (Job Cost),Yesss Electrical, 46.00 ,2014,11,
Central Services to the Public,Management & Support Services,Estates and Economic Development ,Supplies & Services,"Equipment, Furniture & Materials",Purchase Materials (Job Cost),Edmundson Electrical Ltd, 18.00 ,2014,11,
Central Services to the Public,Management & Support Services,Estates and Economic Development ,Supplies & Services,"Equipment, Furniture & Materials",Purchase Materials (Job Cost),Newey & Eyre Ltd, 27.00 ,2014,11,
Central Services to the Public,Management & Support Services,Estates and Economic Development ,Supplies & Services,"Equipment, Furniture & Materials",Purchase Materials (Job Cost),Yesss Electrical, 22.40 ,2014,11,
Central Services to the Public,Management & Support Services,Estates and Economic Development ,Supplies & Services,"Equipment, Furniture & Materials",Purchase Materials (Job Cost),Yesss Electrical, 13.77 ,2014,11,
Central Services to the Public,Management & Support Services,Estates and Economic Development ,Supplies & Services,"Equipment, Furniture & Materials",Purchase Materials (Job Cost),Newey & Eyre Ltd, 24.50 ,2014,11,
Central Services to the Public,Management & Support Services,Estates and Economic Development ,Supplies & Services,"Equipment, Furniture & Materials",Purchase Materials (Job Cost),Newey & Eyre Ltd, 143.00 ,2014,11,
Central Services to the Public,Management & Support Services,Estates and Economic Development ,Supplies & Services,"Equipment, Furniture & Materials",Purchase Materials (Job Cost),Edmundson Electrical Ltd, 46.40 ,2014,11,
Central Services to the Public,Management & Support Services,Estates and Economic Development ,Supplies & Services,"Equipment, Furniture & Materials",Purchase Materials (Job Cost),Edmundson Electrical Ltd, 10.00 ,2014,11,
Central Services to the Public,Management & Support Services,Estates and Economic Development ,Supplies & Services,"Equipment, Furniture & Materials",Purchase Materials (Job Cost),Edmundson Electrical Ltd, 14.14 ,2014,11,
Central Services to the Public,Management & Support Services,Estates and Economic Development ,Supplies & Services,"Equipment, Furniture & Materials",Purchase Materials (Job Cost),Edmundson Electrical Ltd, 38.44 ,2014,11,
Central Services to the Public,Management & Support Services,Estates and Economic Development ,Supplies & Services,"Equipment, Furniture & Materials",Purchase Materials (Job Cost),Edmundson Electrical Ltd, 13.01 ,2014,11,
Central Services to the Public,Management & Support Services,Estates and Economic Development ,Supplies & Services,"Equipment, Furniture & Materials",Purchase Materials (Job Cost),Edmundson Electrical Ltd, 122.77 ,2014,11,
Central Services to the Public,Management & Support Services,Estates and Economic Development ,Supplies & Services,"Equipment, Furniture & Materials",Purchase Materials (Job Cost),Edmundson Electrical Ltd, 18.40 ,2014,11,
Central Services to the Public,Management & Support Services,Estates and Economic Development ,Supplies & Services,"Equipment, Furniture & Materials",Purchase Materials (Job Cost),Yesss Electrical, 199.30 ,2014,11,
Central Services to the Public,Management & Support Services,Estates and Economic Development ,Supplies & Services,"Equipment, Furniture & Materials",Purchase Materials (Job Cost),Edmundson Electrical Ltd, 14.20 ,2014,11,
Central Services to the Public,Management & Support Services,Estates and Economic Development ,Supplies & Services,"Equipment, Furniture & Materials",Purchase Materials (Job Cost),Edmundson Electrical Ltd, 79.56 ,2014,11,
Central Services to the Public,Management & Support Services,Estates and Economic Development ,Supplies & Services,"Equipment, Furniture & Materials",Purchase Materials (Job Cost),Yesss Electrical, 27.70 ,2014,11,
Central Services to the Public,Management & Support Services,Estates and Economic Development ,Supplies & Services,"Equipment, Furniture & Materials",Purchase Materials (Job Cost),Yesss Electrical, 88.73 ,2014,11,
Central Services to the Public,Management & Support Services,Estates and Economic Development ,Supplies & Services,"Equipment, Furniture & Materials",Purchase Equip + Materials,Yesss Electrical, 16.92 ,2014,11,
Central Services to the Public,Management & Support Services,Estates and Economic Development ,Supplies & Services,"Equipment, Furniture & Materials",Purchase Materials (Job Cost),Edmundson Electrical Ltd, 13.30 ,2014,11,
Central Services to the Public,Management & Support Services,Estates and Economic Development ,Supplies & Services,"Equipment, Furniture & Materials",Purchase Materials (Job Cost),Newey & Eyre Ltd, 9.00 ,2014,11,
Central Services to the Public,Management & Support Services,Estates and Economic Development ,Supplies & Services,"Equipment, Furniture & Materials",Purchase Materials (Job Cost),Edmundson Electrical Ltd, 5.95 ,2014,11,
Central Services to the Public,Management & Support Services,Estates and Economic Development ,Supplies & Services,"Equipment, Furniture & Materials",Purchase Materials (Job Cost),Edmundson Electrical Ltd, 11.55 ,2014,11,
Central Services to the Public,Management & Support Services,Estates and Economic Development ,Supplies & Services,"Equipment, Furniture & Materials",Purchase Materials (Job Cost),Edmundson Electrical Ltd, 9.20 ,2014,11,
Central Services to the Public,Management & Support Services,Estates and Economic Development ,Supplies & Services,"Equipment, Furniture & Materials",Purchase Materials (Job Cost),Edmundson Electrical Ltd, 3.64 ,2014,11,
Central Services to the Public,Management & Support Services,Estates and Economic Development ,Supplies & Services,"Equipment, Furniture & Materials",Purchase Materials (Job Cost),Travis Perkins Trading Co Ltd, 12.09 ,2014,11,
Central Services to the Public,Management & Support Services,Estates and Economic Development ,Supplies & Services,"Equipment, Furniture & Materials",Purchase Materials (Job Cost),Roland Security Llp, 2.71 ,2014,11,
Central Services to the Public,Management & Support Services,Estates and Economic Development ,Supplies & Services,"Equipment, Furniture & Materials",Equipment Hire,Travis Perkins Trading Co Ltd, 100.00 ,2014,11,
Central Services to the Public,Management & Support Services,Estates and Economic Development ,Supplies & Services,"Equipment, Furniture & Materials",Purchase Equip + Materials,Travis Perkins Trading Co Ltd, 28.94 ,2014,11,
Central Services to the Public,Management & Support Services,Estates and Economic Development ,Supplies & Services,"Equipment, Furniture & Materials",Equipment Hire,Travis Perkins Trading Co Ltd,-100.00 ,2014,11,
Central Services to the Public,Management & Support Services,Estates and Economic Development ,Supplies & Services,"Equipment, Furniture & Materials",Equipment Hire,Travis Perkins Trading Co Ltd, 65.76 ,2014,11,
Central Services to the Public,Management & Support Services,Estates and Economic Development ,Supplies & Services,"Equipment, Furniture & Materials",Purchase Materials (Job Cost),Travis Perkins Trading Co Ltd, 7.39 ,2014,11,
Central Services to the Public,Management & Support Services,Estates and Economic Development ,Supplies & Services,"Equipment, Furniture & Materials",Purchase Materials (Job Cost),Travis Perkins Trading Co Ltd, 63.66 ,2014,11,
Central Services to the Public,Management & Support Services,Estates and Economic Development ,Supplies & Services,"Equipment, Furniture & Materials",Purchase Materials (Job Cost),C Brewer & Sons Ltd, 47.99 ,2014,11,
Central Services to the Public,Management & Support Services,Estates and Economic Development ,Supplies & Services,"Equipment, Furniture & Materials",Purchase Materials (Job Cost),Travis Perkins Trading Co Ltd, 55.84 ,2014,11,
Central Services to the Public,Management & Support Services,Estates and Economic Development ,Supplies & Services,"Equipment, Furniture & Materials",Purchase Materials (Job Cost),C Brewer & Sons Ltd, 34.34 ,2014,11,
Central Services to the Public,Management & Support Services,Estates and Economic Development ,Supplies & Services,"Equipment, Furniture & Materials",Purchase Materials (Job Cost),C Brewer & Sons Ltd, 137.19 ,2014,11,
Central Services to the Public,Management & Support Services,Estates and Economic Development ,Supplies & Services,"Equipment, Furniture & Materials",Purchase Materials (Job Cost),HSS Hire,-150.00 ,2014,11,
Central Services to the Public,Management & Support Services,Estates and Economic Development ,Supplies & Services,"Equipment, Furniture & Materials",Purchase Materials (Job Cost),HSS Hire, 115.27 ,2014,11,
Central Services to the Public,Management & Support Services,Estates and Economic Development ,Supplies & Services,"Equipment, Furniture & Materials",Purchase Materials (Job Cost),Wessex Fixings Ltd, 5.59 ,2014,11,
Central Services to the Public,Management & Support Services,Estates and Economic Development ,Supplies & Services,"Equipment, Furniture & Materials",Purchase Materials (Job Cost),C Brewer & Sons Ltd, 51.74 ,2014,11,
Central Services to the Public,Management & Support Services,Estates and Economic Development ,Supplies & Services,"Equipment, Furniture & Materials",Purchase Materials (Job Cost),C Brewer & Sons Ltd, 98.48 ,2014,11,
Central Services to the Public,Management & Support Services,Estates and Economic Development ,Supplies & Services,"Equipment, Furniture & Materials",Purchase Materials (Job Cost),Wolseley Uk Limited, 23.19 ,2014,11,
Central Services to the Public,Management & Support Services,Estates and Economic Development ,Supplies & Services,"Equipment, Furniture & Materials",Purchase Materials (Job Cost),Toolstation Ltd, 48.16 ,2014,11,
Central Services to the Public,Management & Support Services,Estates and Economic Development ,Supplies & Services,"Equipment, Furniture & Materials",Purchase Materials (Job Cost),Andover Patio Centre, 45.98 ,2014,11,
Central Services to the Public,Management & Support Services,Estates and Economic Development ,Supplies & Services,"Equipment, Furniture & Materials",Purchase Materials (Job Cost),Wolseley Uk Limited, 22.71 ,2014,11,
Central Services to the Public,Management & Support Services,Estates and Economic Development ,Supplies & Services,"Equipment, Furniture & Materials",Purchase Materials (Job Cost),Wolseley Uk Limited, 23.77 ,2014,11,
Central Services to the Public,Management & Support Services,Estates and Economic Development ,Supplies & Services,"Equipment, Furniture & Materials",Purchase Materials (Job Cost),Woodstock Plumbing & Heating Supp Ltd, 27.70 ,2014,11,
Central Services to the Public,Management & Support Services,Estates and Economic Development ,Supplies & Services,"Equipment, Furniture & Materials",Purchase Materials (Job Cost),Wolseley Uk Limited, 231.35 ,2014,11,
Central Services to the Public,Management & Support Services,Estates and Economic Development ,Supplies & Services,"Equipment, Furniture & Materials",Purchase Materials (Job Cost),Wolseley Uk Limited, 84.24 ,2014,11,
Central Services to the Public,Management & Support Services,Estates and Economic Development ,Supplies & Services,"Equipment, Furniture & Materials",Purchase Materials (Job Cost),Wolseley Uk Limited, 24.53 ,2014,11,
Central Services to the Public,Management & Support Services,Estates and Economic Development ,Supplies & Services,"Equipment, Furniture & Materials",Purchase Materials (Job Cost),Wolseley Uk Limited, 17.14 ,2014,11,
Central Services to the Public,Management & Support Services,Estates and Economic Development ,Supplies & Services,"Equipment, Furniture & Materials",Purchase Materials (Job Cost),Wolseley Uk Limited, 65.80 ,2014,11,
Central Services to the Public,Management & Support Services,Estates and Economic Development ,Supplies & Services,"Equipment, Furniture & Materials",Purchase Materials (Job Cost),Wolseley Uk Limited, 8.26 ,2014,11,
Central Services to the Public,Management & Support Services,Estates and Economic Development ,Supplies & Services,"Equipment, Furniture & Materials",Purchase Materials (Job Cost),Wolseley Uk Limited, 53.73 ,2014,11,
Central Services to the Public,Management & Support Services,Estates and Economic Development ,Supplies & Services,"Equipment, Furniture & Materials",Purchase Materials (Job Cost),Wolseley Uk Limited, 7.28 ,2014,11,
Central Services to the Public,Management & Support Services,Estates and Economic Development ,Supplies & Services,"Equipment, Furniture & Materials",Purchase Materials (Job Cost),Ab Building Products Ltd, 117.28 ,2014,11,
Central Services to the Public,Management & Support Services,Estates and Economic Development ,Supplies & Services,"Equipment, Furniture & Materials",Purchase Materials (Job Cost),Martins of Andover, 40.00 ,2014,11,
Central Services to the Public,Management & Support Services,Estates and Economic Development ,Supplies & Services,"Equipment, Furniture & Materials",Purchase Materials (Job Cost),Wolseley Uk Limited, 34.95 ,2014,11,
Central Services to the Public,Management & Support Services,Estates and Economic Development ,Supplies & Services,"Equipment, Furniture & Materials",Purchase Materials (Job Cost),Wolseley Uk Limited, 6.72 ,2014,11,
Central Services to the Public,Management & Support Services,Estates and Economic Development ,Supplies & Services,"Equipment, Furniture & Materials",Purchase Materials (Job Cost),Wolseley Uk Limited, 364.13 ,2014,11,
Central Services to the Public,Management & Support Services,Estates and Economic Development ,Supplies & Services,"Equipment, Furniture & Materials",Purchase Materials (Job Cost),Wolseley Uk Limited, 56.66 ,2014,11,
Central Services to the Public,Management & Support Services,Estates and Economic Development ,Supplies & Services,"Equipment, Furniture & Materials",Purchase Materials (Job Cost),Wolseley Uk Limited, 25.15 ,2014,11,
Central Services to the Public,Management & Support Services,Estates and Economic Development ,Supplies & Services,"Equipment, Furniture & Materials",Purchase Equip + Materials,Roland Security Llp, 32.40 ,2014,11,
Central Services to the Public,Management & Support Services,Estates and Economic Development ,Supplies & Services,Services,Training Courses,HSS Hire, 83.00 ,2014,11,
Central Services to the Public,Management & Support Services,Estates and Economic Development ,Supplies & Services,"Equipment, Furniture & Materials",Purchase Materials (Job Cost),Roland Security Llp, 50.25 ,2014,11,
Central Services to the Public,Management & Support Services,Estates and Economic Development ,Supplies & Services,"Equipment, Furniture & Materials",Purchase Materials (Job Cost),Roland Security Llp, 42.46 ,2014,11,
Central Services to the Public,Management & Support Services,Estates and Economic Development ,Supplies & Services,"Equipment, Furniture & Materials",Purchase Materials (Job Cost),Howdens Joinery Co, 199.25 ,2014,11,
Central Services to the Public,Management & Support Services,Estates and Economic Development ,Supplies & Services,"Equipment, Furniture & Materials",Purchase Materials (Job Cost),Travis Perkins Trading Co Ltd, 22.41 ,2014,11,
Central Services to the Public,Management & Support Services,Estates and Economic Development ,Supplies & Services,"Equipment, Furniture & Materials",Purchase Materials (Job Cost),Travis Perkins Trading Co Ltd, 79.00 ,2014,11,
Central Services to the Public,Management & Support Services,Estates and Economic Development ,Supplies & Services,"Equipment, Furniture & Materials",Purchase Materials (Job Cost),C Brewer & Sons Ltd, 215.66 ,2014,11,
Central Services to the Public,Management & Support Services,Estates and Economic Development ,Supplies & Services,"Equipment, Furniture & Materials",Purchase Materials (Job Cost),C Brewer & Sons Ltd, 115.09 ,2014,11,
Central Services to the Public,Management & Support Services,Estates and Economic Development ,Supplies & Services,"Equipment, Furniture & Materials",Purchase Materials (Job Cost),C Brewer & Sons Ltd, 66.17 ,2014,11,
Environmental & Regulatory,Regulatory Services,Estates and Economic Development ,Supplies & Services,"Equipment, Furniture & Materials",Purchase Equip + Materials,Travis Perkins Trading Co Ltd, 33.20 ,2014,11,
Environmental & Regulatory,Street Cleansing (not chargeable to Highways),Environmental,Supplies & Services,"Equipment, Furniture & Materials",Purchase Equip + Materials,Screwfix Direct Ltd, 176.63 ,2014,11,
Central Services to the Public,Management & Support Services,Environmental,Supplies & Services,"Equipment, Furniture & Materials",Purchase Equip + Materials,Argos Ltd, 17.09 ,2014,11,
Environmental & Regulatory,Street Cleansing (not chargeable to Highways),Environmental,Supplies & Services,"Equipment, Furniture & Materials",Purchase Equip + Materials,Screwfix Direct Ltd, 74.16 ,2014,11,
Environmental & Regulatory,Street Cleansing (not chargeable to Highways),Environmental,Supplies & Services,"Equipment, Furniture & Materials",Purchase Equip + Materials,Screwfix Direct Ltd, 84.61 ,2014,11,
Environmental & Regulatory,Waste management,Environmental,Transport Related Expenditure,Direct Transport Costs,Repair Materials,Archie Moss, 27.99 ,2014,11,
Central Services to the Public,Management & Support Services,Environmental,Transport Related Expenditure,Direct Transport Costs,Repair Materials,Archie Moss, 16.54 ,2014,11,
Central Services to the Public,Management & Support Services,Environmental,Supplies & Services,Grants & Subscriptions,Subscriptions,Road Transport, 135.00 ,2014,11,
Central Services to the Public,Management & Support Services,Environmental,Supplies & Services,"Equipment, Furniture & Materials",Maintenance Equip + Materials,VDOSHOP, 48.95 ,2014,11,
Central Services to the Public,Management & Support Services,Environmental,Transport Related Expenditure,Direct Transport Costs,MOT Tests,DVSA, 205.00 ,2014,11,
Environmental & Regulatory,Street Cleansing (not chargeable to Highways),Environmental,Transport Related Expenditure,Direct Transport Costs,Licences,DVLA, 212.50 ,2014,11,
Cultural & Related,Open Spaces,Environmental,Transport Related Expenditure,Direct Transport Costs,Licences,DVLA, 227.50 ,2014,11,
Environmental & Regulatory,Regulatory Services,Estates and Economic Development ,Transport Related Expenditure,Direct Transport Costs,Licences,DVLA, 227.50 ,2014,11,
Environmental & Regulatory,Waste management,Environmental,Transport Related Expenditure,Direct Transport Costs,Licences,DVLA, 227.50 ,2014,11,
Environmental & Regulatory,Regulatory Services,Estates and Economic Development ,Transport Related Expenditure,Direct Transport Costs,Licences,DVLA, 227.50 ,2014,11,
Environmental & Regulatory,Waste management,Environmental,Transport Related Expenditure,Direct Transport Costs,Licences,DVLA, 227.50 ,2014,11,
Cultural & Related,Open Spaces,Environmental,Transport Related Expenditure,Direct Transport Costs,Repair Materials,Ceejay Systems, 202.50 ,2014,11,
Environmental & Regulatory,Street Cleansing (not chargeable to Highways),Environmental,Transport Related Expenditure,Direct Transport Costs,Licences,Post Office Ltd, 295.00 ,2014,11,
Central Services to the Public,Management & Support Services,Estates and Economic Development ,Supplies & Services,"Equipment, Furniture & Materials",Purchase Equip + Materials,AMAZON, 10.83 ,2014,12,
Cultural & Related,Culture & Heritage,Estates and Economic Development ,Supplies & Services,"Equipment, Furniture & Materials",Purchase Equip + Materials,AMAZON, 28.33 ,2014,12,
Central Services to the Public,Management & Support Services,Estates and Economic Development ,Supplies & Services,"Equipment, Furniture & Materials",Maintenance Of Tools,SJD Supplies, 69.90 ,2014,12,
Central Services to the Public,Management & Support Services,Estates and Economic Development ,Supplies & Services,"Equipment, Furniture & Materials",Maintenance Of Tools,SJD Supplies, 69.90 ,2014,12,
Central Services to the Public,Management & Support Services,Estates and Economic Development ,Supplies & Services,"Equipment, Furniture & Materials",Purchase Equip + Materials,AMAZON, 19.99 ,2014,12,
Central Services to the Public,Management & Support Services,Estates and Economic Development ,Supplies & Services,"Equipment, Furniture & Materials",Maintenance Of Tools,SJD Supplies, 10.08 ,2014,12,
Central Services to the Public,Management & Support Services,Estates and Economic Development ,Supplies & Services,"Equipment, Furniture & Materials",Purchase Materials (Job Cost),British Central Electrical, 6.88 ,2014,12,
Central Services to the Public,Management & Support Services,Estates and Economic Development ,Supplies & Services,"Equipment, Furniture & Materials",Purchase Materials (Job Cost),Wessex Fixings Ltd, 10.12 ,2014,12,
Central Services to the Public,Management & Support Services,Estates and Economic Development ,Supplies & Services,"Equipment, Furniture & Materials",Purchase Materials (Job Cost),British Central Electrical, 6.68 ,2014,12,
Central Services to the Public,Management & Support Services,Estates and Economic Development ,Supplies & Services,"Equipment, Furniture & Materials",Purchase Materials (Job Cost),British Central Electrical, 6.68 ,2014,12,
Central Services to the Public,Management & Support Services,Estates and Economic Development ,Supplies & Services,"Equipment, Furniture & Materials",Purchase Materials (Job Cost),British Central Electrical, 12.00 ,2014,12,
Central Services to the Public,Management & Support Services,Estates and Economic Development ,Supplies & Services,"Equipment, Furniture & Materials",Purchase Materials (Job Cost),British Central Electrical, 52.00 ,2014,12,
Central Services to the Public,Management & Support Services,Estates and Economic Development ,Supplies & Services,"Equipment, Furniture & Materials",Purchase Materials (Job Cost),British Central Electrical, 5.60 ,2014,12,
Central Services to the Public,Management & Support Services,Estates and Economic Development ,Supplies & Services,"Equipment, Furniture & Materials",Purchase Materials (Job Cost),Yesss Electrical, 9.00 ,2014,12,
Central Services to the Public,Management & Support Services,Estates and Economic Development ,Supplies & Services,"Equipment, Furniture & Materials",Purchase Materials (Job Cost),Yesss Electrical, 69.00 ,2014,12,
Central Services to the Public,Management & Support Services,Estates and Economic Development ,Supplies & Services,"Equipment, Furniture & Materials",Purchase Materials (Job Cost),Yesss Electrical, 11.72 ,2014,12,
Central Services to the Public,Management & Support Services,Estates and Economic Development ,Supplies & Services,"Equipment, Furniture & Materials",Purchase Materials (Job Cost),British Central Electrical, 91.92 ,2014,12,
Central Services to the Public,Management & Support Services,Estates and Economic Development ,Supplies & Services,"Equipment, Furniture & Materials",Purchase Materials (Job Cost),British Central Electrical, 44.06 ,2014,12,
Central Services to the Public,Management & Support Services,Estates and Economic Development ,Supplies & Services,"Equipment, Furniture & Materials",Purchase Materials (Job Cost),British Central Electrical, 8.50 ,2014,12,
Central Services to the Public,Management & Support Services,Estates and Economic Development ,Supplies & Services,"Equipment, Furniture & Materials",Purchase Materials (Job Cost),British Central Electrical, 11.34 ,2014,12,
Central Services to the Public,Management & Support Services,Estates and Economic Development ,Supplies & Services,"Equipment, Furniture & Materials",Purchase Materials (Job Cost),British Central Electrical, 145.86 ,2014,12,
Central Services to the Public,Management & Support Services,Estates and Economic Development ,Supplies & Services,"Equipment, Furniture & Materials",Purchase Materials (Job Cost),British Central Electrical,-20.25 ,2014,12,
Central Services to the Public,Management & Support Services,Estates and Economic Development ,Supplies & Services,"Equipment, Furniture & Materials",Purchase Materials (Job Cost),Yesss Electrical, 9.94 ,2014,12,
Central Services to the Public,Management & Support Services,Estates and Economic Development ,Supplies & Services,"Equipment, Furniture & Materials",Purchase Materials (Job Cost),British Central Electrical, 65.45 ,2014,12,
Central Services to the Public,Management & Support Services,Estates and Economic Development ,Supplies & Services,"Equipment, Furniture & Materials",Purchase Materials (Job Cost),British Central Electrical, 90.78 ,2014,12,
Central Services to the Public,Management & Support Services,Estates and Economic Development ,Supplies & Services,"Equipment, Furniture & Materials",Purchase Materials (Job Cost),British Central Electrical, 298.97 ,2014,12,
Central Services to the Public,Management & Support Services,Estates and Economic Development ,Supplies & Services,"Equipment, Furniture & Materials",Purchase Materials (Job Cost),Yesss Electrical, 75.29 ,2014,12,
Central Services to the Public,Management & Support Services,Estates and Economic Development ,Supplies & Services,"Equipment, Furniture & Materials",Purchase Materials (Job Cost),British Central Electrical, 15.65 ,2014,12,
Central Services to the Public,Management & Support Services,Estates and Economic Development ,Supplies & Services,"Equipment, Furniture & Materials",Purchase Materials (Job Cost),British Central Electrical, 21.40 ,2014,12,
Central Services to the Public,Management & Support Services,Estates and Economic Development ,Supplies & Services,"Equipment, Furniture & Materials",Purchase Materials (Job Cost),Kew (Electrical Distributors) Limited, 23.63 ,2014,12,
Central Services to the Public,Management & Support Services,Estates and Economic Development ,Supplies & Services,"Equipment, Furniture & Materials",Purchase Materials (Job Cost),British Central Electrical, 2.60 ,2014,12,
Central Services to the Public,Management & Support Services,Estates and Economic Development ,Supplies & Services,"Equipment, Furniture & Materials",Purchase Materials (Job Cost),British Central Electrical, 3.00 ,2014,12,
Central Services to the Public,Management & Support Services,Estates and Economic Development ,Supplies & Services,"Equipment, Furniture & Materials",Purchase Materials (Job Cost),British Central Electrical, 6.08 ,2014,12,
Central Services to the Public,Management & Support Services,Estates and Economic Development ,Supplies & Services,"Equipment, Furniture & Materials",Purchase Materials (Job Cost),British Central Electrical, 477.88 ,2014,12,
Central Services to the Public,Management & Support Services,Estates and Economic Development ,Supplies & Services,"Equipment, Furniture & Materials",Purchase Materials (Job Cost),British Central Electrical, 89.70 ,2014,12,
Central Services to the Public,Management & Support Services,Estates and Economic Development ,Supplies & Services,"Equipment, Furniture & Materials",Purchase Materials (Job Cost),British Central Electrical, 112.50 ,2014,12,
Central Services to the Public,Management & Support Services,Estates and Economic Development ,Supplies & Services,"Equipment, Furniture & Materials",Purchase Materials (Job Cost),Travis Perkins Trading Co Ltd, 36.64 ,2014,12,
Central Services to the Public,Management & Support Services,Estates and Economic Development ,Supplies & Services,"Equipment, Furniture & Materials",Purchase Materials (Job Cost),Discount Tiles Ltd, 10.50 ,2014,12,
Central Services to the Public,Management & Support Services,Estates and Economic Development ,Supplies & Services,"Equipment, Furniture & Materials",Purchase Materials (Job Cost),Travis Perkins Trading Co Ltd, 23.84 ,2014,12,
Central Services to the Public,Management & Support Services,Estates and Economic Development ,Supplies & Services,"Equipment, Furniture & Materials",Purchase Materials (Job Cost),Travis Perkins Trading Co Ltd, 25.13 ,2014,12,
Central Services to the Public,Management & Support Services,Estates and Economic Development ,Supplies & Services,"Equipment, Furniture & Materials",Purchase Materials (Job Cost),Travis Perkins Trading Co Ltd, 25.13 ,2014,12,
Central Services to the Public,Management & Support Services,Estates and Economic Development ,Supplies & Services,"Equipment, Furniture & Materials",Purchase Materials (Job Cost),Travis Perkins Trading Co Ltd, 3.71 ,2014,12,
Central Services to the Public,Management & Support Services,Estates and Economic Development ,Supplies & Services,"Equipment, Furniture & Materials",Purchase Materials (Job Cost),A.T.F Supplies, 50.85 ,2014,12,
Central Services to the Public,Management & Support Services,Estates and Economic Development ,Supplies & Services,"Equipment, Furniture & Materials",Purchase Materials (Job Cost),Howdens Joinery Co, 15.84 ,2014,12,
Central Services to the Public,Management & Support Services,Estates and Economic Development ,Supplies & Services,"Equipment, Furniture & Materials",Purchase Materials (Job Cost),C Brewer & Sons Ltd, 50.10 ,2014,12,
Central Services to the Public,Management & Support Services,Estates and Economic Development ,Supplies & Services,"Equipment, Furniture & Materials",Purchase Materials (Job Cost),Toolstation Ltd, 23.38 ,2014,12,
Central Services to the Public,Management & Support Services,Estates and Economic Development ,Supplies & Services,"Equipment, Furniture & Materials",Purchase Materials (Job Cost),Motor World, 16.65 ,2014,12,
Central Services to the Public,Management & Support Services,Estates and Economic Development ,Supplies & Services,"Equipment, Furniture & Materials",Purchase Materials (Job Cost),Woodstock Plumbing & Heating Supp Ltd, 6.96 ,2014,12,
Central Services to the Public,Management & Support Services,Estates and Economic Development ,Supplies & Services,"Equipment, Furniture & Materials",Purchase Materials (Job Cost),Woodstock Plumbing & Heating Supp Ltd, 6.96 ,2014,12,
Central Services to the Public,Management & Support Services,Estates and Economic Development ,Supplies & Services,"Equipment, Furniture & Materials",Purchase Materials (Job Cost),Plumb Centre, 6.15 ,2014,12,
Central Services to the Public,Management & Support Services,Estates and Economic Development ,Supplies & Services,"Equipment, Furniture & Materials",Purchase Materials (Job Cost),Plumb Centre, 30.05 ,2014,12,
Central Services to the Public,Management & Support Services,Estates and Economic Development ,Supplies & Services,"Equipment, Furniture & Materials",Purchase Materials (Job Cost),Plumb Centre, 17.14 ,2014,12,
Central Services to the Public,Management & Support Services,Estates and Economic Development ,Supplies & Services,"Equipment, Furniture & Materials",Purchase Materials (Job Cost),Plumb Centre, 16.98 ,2014,12,
Central Services to the Public,Management & Support Services,Estates and Economic Development ,Supplies & Services,"Equipment, Furniture & Materials",Purchase Materials (Job Cost),Plumb Centre, 284.00 ,2014,12,
Central Services to the Public,Management & Support Services,Estates and Economic Development ,Supplies & Services,"Equipment, Furniture & Materials",Purchase Materials (Job Cost),Woodstock Plumbing & Heating Supp Ltd, 48.96 ,2014,12,
Central Services to the Public,Management & Support Services,Estates and Economic Development ,Supplies & Services,"Equipment, Furniture & Materials",Purchase Materials (Job Cost),Wessex Fixings Ltd, 47.01 ,2014,12,
Central Services to the Public,Management & Support Services,Estates and Economic Development ,Supplies & Services,"Equipment, Furniture & Materials",Purchase Materials (Job Cost),Wessex Fixings Ltd, 7.79 ,2014,12,
Central Services to the Public,Management & Support Services,Estates and Economic Development ,Supplies & Services,"Equipment, Furniture & Materials",Purchase Materials (Job Cost),Plumb Centre, 81.65 ,2014,12,
Central Services to the Public,Management & Support Services,Estates and Economic Development ,Supplies & Services,"Equipment, Furniture & Materials",Purchase Materials (Job Cost),Plumb Centre, 20.87 ,2014,12,
Central Services to the Public,Management & Support Services,Estates and Economic Development ,Supplies & Services,"Equipment, Furniture & Materials",Purchase Materials (Job Cost),Plumb Centre, 202.95 ,2014,12,
Central Services to the Public,Management & Support Services,Estates and Economic Development ,Supplies & Services,"Equipment, Furniture & Materials",Purchase Materials (Job Cost),Plumb Centre, 22.85 ,2014,12,
Central Services to the Public,Management & Support Services,Estates and Economic Development ,Supplies & Services,"Equipment, Furniture & Materials",Purchase Materials (Job Cost),Drainage Centre, 73.12 ,2014,12,
Central Services to the Public,Management & Support Services,Estates and Economic Development ,Supplies & Services,"Equipment, Furniture & Materials",Purchase Materials (Job Cost),Plumb Centre, 105.06 ,2014,12,
Central Services to the Public,Management & Support Services,Estates and Economic Development ,Supplies & Services,"Equipment, Furniture & Materials",Purchase Materials (Job Cost),Plumb Centre, 40.98 ,2014,12,
Central Services to the Public,Management & Support Services,Estates and Economic Development ,Supplies & Services,"Equipment, Furniture & Materials",Purchase Materials (Job Cost),Travis Perkins Trading Co Ltd, 17.48 ,2014,12,
Central Services to the Public,Management & Support Services,Estates and Economic Development ,Supplies & Services,"Equipment, Furniture & Materials",Purchase Materials (Job Cost),Drainage Centre, 59.56 ,2014,12,
Central Services to the Public,Management & Support Services,Estates and Economic Development ,Supplies & Services,"Equipment, Furniture & Materials",Purchase Materials (Job Cost),Plumb Centre, 99.00 ,2014,12,
Central Services to the Public,Management & Support Services,Estates and Economic Development ,Supplies & Services,"Equipment, Furniture & Materials",Purchase Materials (Job Cost),Plumb Centre, 20.20 ,2014,12,
Central Services to the Public,Management & Support Services,Estates and Economic Development ,Supplies & Services,"Equipment, Furniture & Materials",Purchase Materials (Job Cost),Plumb Centre, 31.59 ,2014,12,
Central Services to the Public,Management & Support Services,Estates and Economic Development ,Supplies & Services,"Equipment, Furniture & Materials",Purchase Materials (Job Cost),Plumb Centre, 94.77 ,2014,12,
Central Services to the Public,Management & Support Services,Estates and Economic Development ,Supplies & Services,"Equipment, Furniture & Materials",Purchase Materials (Job Cost),Travis Perkins Trading Co Ltd, 47.42 ,2014,12,
Central Services to the Public,Management & Support Services,Estates and Economic Development ,Supplies & Services,"Equipment, Furniture & Materials",Purchase Materials (Job Cost),Woodstock Plumbing & Heating Supp Ltd, 16.03 ,2014,12,
Central Services to the Public,Management & Support Services,Estates and Economic Development ,Supplies & Services,"Equipment, Furniture & Materials",Purchase Materials (Job Cost),Woodstock Plumbing & Heating Supp Ltd, 6.96 ,2014,12,
Central Services to the Public,Management & Support Services,Estates and Economic Development ,Supplies & Services,"Equipment, Furniture & Materials",Purchase Materials (Job Cost),Roland Security Llp, 87.31 ,2014,12,
Central Services to the Public,Management & Support Services,Estates and Economic Development ,Supplies & Services,"Equipment, Furniture & Materials",Purchase Materials (Job Cost),Roland Security Llp, 27.18 ,2014,12,
Central Services to the Public,Management & Support Services,Estates and Economic Development ,Supplies & Services,"Equipment, Furniture & Materials",Purchase Materials (Job Cost),Roland Security Llp, 21.54 ,2014,12,
Central Services to the Public,Management & Support Services,Estates and Economic Development ,Supplies & Services,"Equipment, Furniture & Materials",Purchase Materials (Job Cost),Roland Security Llp, 21.25 ,2014,12,
Central Services to the Public,Management & Support Services,Estates and Economic Development ,Supplies & Services,"Equipment, Furniture & Materials",Purchase Materials (Job Cost),Ab Building Products Ltd, 8.73 ,2014,12,
Central Services to the Public,Management & Support Services,Estates and Economic Development ,Supplies & Services,"Equipment, Furniture & Materials",Purchase Materials (Job Cost),Wickes Building Supplies Ltd, 8.32 ,2014,12,
Central Services to the Public,Management & Support Services,Estates and Economic Development ,Supplies & Services,"Equipment, Furniture & Materials",Purchase Materials (Job Cost),Travis Perkins Trading Co Ltd, 7.38 ,2014,12,
Central Services to the Public,Management & Support Services,Estates and Economic Development ,Supplies & Services,"Equipment, Furniture & Materials",Purchase Materials (Job Cost),Travis Perkins Trading Co Ltd, 24.08 ,2014,12,
Central Services to the Public,Management & Support Services,Estates and Economic Development ,Supplies & Services,"Equipment, Furniture & Materials",Purchase Materials (Job Cost),Roland Security Llp, 5.63 ,2014,12,
Central Services to the Public,Management & Support Services,Estates and Economic Development ,Supplies & Services,"Equipment, Furniture & Materials",Purchase Materials (Job Cost),Wessex Fixings Ltd, 6.92 ,2014,12,
Central Services to the Public,Management & Support Services,Estates and Economic Development ,Supplies & Services,"Equipment, Furniture & Materials",Purchase Materials (Job Cost),Wessex Fixings Ltd, 6.92 ,2014,12,
Central Services to the Public,Management & Support Services,Estates and Economic Development ,Supplies & Services,"Equipment, Furniture & Materials",Purchase Materials (Job Cost),C Brewer & Sons Ltd, 100.37 ,2014,12,
Central Services to the Public,Management & Support Services,Estates and Economic Development ,Supplies & Services,"Equipment, Furniture & Materials",Purchase Materials (Job Cost),C Brewer & Sons Ltd, 227.31 ,2014,12,
Central Services to the Public,Management & Support Services,Estates and Economic Development ,Supplies & Services,"Equipment, Furniture & Materials",Purchase Materials (Job Cost),Romsey Home Hardware,-41.66 ,2014,12,
Central Services to the Public,Management & Support Services,Estates and Economic Development ,Supplies & Services,"Equipment, Furniture & Materials",Purchase Materials (Job Cost),Romsey Home Hardware, 41.66 ,2014,12,
Environmental & Regulatory,Street Cleansing (not chargeable to Highways),Environmental,Supplies & Services,"Equipment, Furniture & Materials",Purchase Equip + Materials,Screwfix Direct Ltd, 70.96 ,2014,12,
Environmental & Regulatory,Street Cleansing (not chargeable to Highways),Environmental,Supplies & Services,"Equipment, Furniture & Materials",Purchase Equip + Materials,Jewson Ltd, 24.72 ,2014,12,
Environmental & Regulatory,Street Cleansing (not chargeable to Highways),Environmental,Supplies & Services,"Equipment, Furniture & Materials",Purchase Equip + Materials,C Brewer & Sons Ltd, 38.58 ,2014,12,
Environmental & Regulatory,Street Cleansing (not chargeable to Highways),Environmental,Supplies & Services,"Equipment, Furniture & Materials",Purchase Equip + Materials,Screwfix Direct Ltd, 160.40 ,2014,12,
Environmental & Regulatory,Street Cleansing (not chargeable to Highways),Environmental,Supplies & Services,"Equipment, Furniture & Materials",Purchase Equip + Materials,Screwfix Direct Ltd, 156.49 ,2014,12,
Environmental & Regulatory,Street Cleansing (not chargeable to Highways),Environmental,Supplies & Services,"Equipment, Furniture & Materials",Purchase Equip + Materials,A.T.F Supplies, 47.01 ,2014,12,
Central Services to the Public,Management & Support Services,Environmental,Supplies & Services,"Equipment, Furniture & Materials",Purchase Equip + Materials,Currys, 375.18 ,2014,12,
Environmental & Regulatory,Street Cleansing (not chargeable to Highways),Environmental,Supplies & Services,"Equipment, Furniture & Materials",Purchase Equip + Materials,Currys, 127.99 ,2014,12,
Central Services to the Public,Management & Support Services,Environmental,Transport Related Expenditure,Direct Transport Costs,MOT Tests,DVSA, 205.00 ,2014,12,
"Highways, Roads & Transport",Parking Services,Plan Pol & Transport,Transport Related Expenditure,Direct Transport Costs,Licences,DVLA, 227.50 ,2014,12,
Cultural & Related,Open Spaces,Environmental,Transport Related Expenditure,Direct Transport Costs,Licences,DVLA, 227.50 ,2014,12,
Environmental & Regulatory,Regulatory Services,Housing and Environmental Health ,Transport Related Expenditure,Direct Transport Costs,Licences,DVLA, 227.50 ,2014,12,
Environmental & Regulatory,Street Cleansing (not chargeable to Highways),Environmental,Transport Related Expenditure,Direct Transport Costs,Licences,Post Office Ltd, 295.00 ,2014,12,
Central Services to the Public,Management & Support Services,Housing and Environmental Health ,Supplies & Services,Services,Training Courses,The Queens Hotel, 396.00 ,2014,12,
Housing Services,Homelessness,Housing and Environmental Health ,Supplies & Services,Miscellaneous Expenses,Bed & Breakfast,WVR. UK (Hoseasons), 239.00 ,2014,12,
Housing Services,Homelessness,Housing and Environmental Health ,Supplies & Services,Miscellaneous Expenses,Bed & Breakfast,WVR. UK (Hoseasons),-189.00 ,2014,12,
Housing Services,Homelessness,Housing and Environmental Health ,Supplies & Services,Miscellaneous Expenses,Bed & Breakfast,WVR. UK (Hoseasons), 239.00 ,2014,12,
Central Services to the Public,Management & Support Services,Estates and Economic Development ,Supplies & Services,"Equipment, Furniture & Materials",Purchase Equip + Materials,Partmaster, 13.97 ,2015,1,
Central Services to the Public,Management & Support Services,Estates and Economic Development ,Supplies & Services,"Equipment, Furniture & Materials",Purchase Equip + Materials,AMAZON, 137.32 ,2015,1,
Central Services to the Public,Management & Support Services,Estates and Economic Development ,Supplies & Services,"Equipment, Furniture & Materials",Purchase Equip + Materials,AMAZON, 13.85 ,2015,1,
Central Services to the Public,Management & Support Services,Estates and Economic Development ,Supplies & Services,"Equipment, Furniture & Materials",Purchase Materials (Job Cost),Netlighting, 445.50 ,2015,1,
Central Services to the Public,Management & Support Services,Estates and Economic Development ,Supplies & Services,"Equipment, Furniture & Materials",Purchase Materials (Job Cost),Yesss Electrical, 14.99 ,2015,1,
Central Services to the Public,Management & Support Services,Estates and Economic Development ,Supplies & Services,"Equipment, Furniture & Materials",Purchase Materials (Job Cost),British Central Electrical, 2.65 ,2015,1,
Central Services to the Public,Management & Support Services,Estates and Economic Development ,Supplies & Services,"Equipment, Furniture & Materials",Purchase Materials (Job Cost),British Central Electrical, 7.97 ,2015,1,
Central Services to the Public,Management & Support Services,Estates and Economic Development ,Supplies & Services,"Equipment, Furniture & Materials",Purchase Materials (Job Cost),British Central Electrical, 22.50 ,2015,1,
Central Services to the Public,Management & Support Services,Estates and Economic Development ,Supplies & Services,"Equipment, Furniture & Materials",Purchase Materials (Job Cost),Yesss Electrical, 27.11 ,2015,1,
Central Services to the Public,Management & Support Services,Estates and Economic Development ,Supplies & Services,"Equipment, Furniture & Materials",Purchase Materials (Job Cost),British Central Electrical, 27.23 ,2015,1,
Central Services to the Public,Management & Support Services,Estates and Economic Development ,Supplies & Services,"Equipment, Furniture & Materials",Purchase Materials (Job Cost),Yesss Electrical, 25.52 ,2015,1,
Central Services to the Public,Management & Support Services,Estates and Economic Development ,Supplies & Services,"Equipment, Furniture & Materials",Purchase Materials (Job Cost),Yesss Electrical, 10.12 ,2015,1,
Central Services to the Public,Management & Support Services,Estates and Economic Development ,Supplies & Services,"Equipment, Furniture & Materials",Purchase Materials (Job Cost),Yesss Electrical, 38.00 ,2015,1,
Central Services to the Public,Management & Support Services,Estates and Economic Development ,Supplies & Services,"Equipment, Furniture & Materials",Purchase Materials (Job Cost),British Central Electrical, 15.20 ,2015,1,
Central Services to the Public,Management & Support Services,Estates and Economic Development ,Supplies & Services,"Equipment, Furniture & Materials",Purchase Materials (Job Cost),Kew (Electrical Distributors) Limited, 27.16 ,2015,1,
Central Services to the Public,Management & Support Services,Estates and Economic Development ,Supplies & Services,"Equipment, Furniture & Materials",Purchase Materials (Job Cost),British Central Electrical, 21.00 ,2015,1,
Central Services to the Public,Management & Support Services,Estates and Economic Development ,Supplies & Services,"Equipment, Furniture & Materials",Purchase Materials (Job Cost),British Central Electrical, 11.00 ,2015,1,
Central Services to the Public,Management & Support Services,Estates and Economic Development ,Supplies & Services,"Equipment, Furniture & Materials",Purchase Materials (Job Cost),British Central Electrical, 18.19 ,2015,1,
Central Services to the Public,Management & Support Services,Estates and Economic Development ,Supplies & Services,"Equipment, Furniture & Materials",Purchase Materials (Job Cost),British Central Electrical, 32.50 ,2015,1,
Central Services to the Public,Management & Support Services,Estates and Economic Development ,Supplies & Services,"Equipment, Furniture & Materials",Purchase Materials (Job Cost),British Central Electrical, 4.00 ,2015,1,
Central Services to the Public,Management & Support Services,Estates and Economic Development ,Supplies & Services,"Equipment, Furniture & Materials",Purchase Materials (Job Cost),British Central Electrical, 4.00 ,2015,1,
Central Services to the Public,Management & Support Services,Estates and Economic Development ,Supplies & Services,"Equipment, Furniture & Materials",Purchase Materials (Job Cost),Yesss Electrical, 61.28 ,2015,1,
Central Services to the Public,Management & Support Services,Estates and Economic Development ,Supplies & Services,"Equipment, Furniture & Materials",Purchase Equip + Materials,British Central Electrical, 39.10 ,2015,1,
Central Services to the Public,Management & Support Services,Estates and Economic Development ,Supplies & Services,"Equipment, Furniture & Materials",Purchase Materials (Job Cost),British Central Electrical, 8.66 ,2015,1,
Central Services to the Public,Management & Support Services,Estates and Economic Development ,Supplies & Services,"Equipment, Furniture & Materials",Purchase Materials (Job Cost),Wessex Fixings Ltd, 8.64 ,2015,1,
Central Services to the Public,Management & Support Services,Estates and Economic Development ,Supplies & Services,"Equipment, Furniture & Materials",Purchase Materials (Job Cost),Travis Perkins Trading Co Ltd, 110.58 ,2015,1,
Central Services to the Public,Management & Support Services,Estates and Economic Development ,Supplies & Services,"Equipment, Furniture & Materials",Purchase Materials (Job Cost),ATF Supplies, 29.12 ,2015,1,
Central Services to the Public,Management & Support Services,Estates and Economic Development ,Supplies & Services,"Equipment, Furniture & Materials",Purchase Materials (Job Cost),ATF Supplies, 29.12 ,2015,1,
Central Services to the Public,Management & Support Services,Estates and Economic Development ,Supplies & Services,"Equipment, Furniture & Materials",Purchase Materials (Job Cost),Travis Perkins Trading Co Ltd, 20.75 ,2015,1,
Central Services to the Public,Management & Support Services,Estates and Economic Development ,Supplies & Services,"Equipment, Furniture & Materials",Purchase Materials (Job Cost),Buildbase Ltd, 89.72 ,2015,1,
Central Services to the Public,Management & Support Services,Estates and Economic Development ,Supplies & Services,"Equipment, Furniture & Materials",Purchase Materials (Job Cost),Wessex Fixings Ltd, 63.27 ,2015,1,
Central Services to the Public,Management & Support Services,Estates and Economic Development ,Supplies & Services,"Equipment, Furniture & Materials",Purchase Materials (Job Cost),ATF Supplies, 23.84 ,2015,1,
Central Services to the Public,Management & Support Services,Estates and Economic Development ,Supplies & Services,"Equipment, Furniture & Materials",Purchase Materials (Job Cost),Travis Perkins Trading Co Ltd, 11.57 ,2015,1,
Central Services to the Public,Management & Support Services,Estates and Economic Development ,Supplies & Services,"Equipment, Furniture & Materials",Purchase Materials (Job Cost),ATF Supplies, 8.54 ,2015,1,
Central Services to the Public,Management & Support Services,Estates and Economic Development ,Supplies & Services,"Equipment, Furniture & Materials",Purchase Materials (Job Cost),Buildbase Ltd, 76.03 ,2015,1,
Central Services to the Public,Management & Support Services,Estates and Economic Development ,Supplies & Services,"Equipment, Furniture & Materials",Purchase Materials (Job Cost),Buildbase Ltd, 3.25 ,2015,1,
Central Services to the Public,Management & Support Services,Estates and Economic Development ,Supplies & Services,"Equipment, Furniture & Materials",Purchase Materials (Job Cost),Buildbase Ltd, 19.01 ,2015,1,
Central Services to the Public,Management & Support Services,Estates and Economic Development ,Supplies & Services,"Equipment, Furniture & Materials",Purchase Materials (Job Cost),C Brewer & Sons Ltd, 45.28 ,2015,1,
Central Services to the Public,Management & Support Services,Estates and Economic Development ,Supplies & Services,"Equipment, Furniture & Materials",Purchase Materials (Job Cost),Screwfix Direct Ltd, 22.50 ,2015,1,
Central Services to the Public,Management & Support Services,Estates and Economic Development ,Supplies & Services,"Equipment, Furniture & Materials",Purchase Tools,C Brewer & Sons Ltd, 9.99 ,2015,1,
Central Services to the Public,Management & Support Services,Estates and Economic Development ,Supplies & Services,"Equipment, Furniture & Materials",Purchase Materials (Job Cost),C Brewer & Sons Ltd, 39.26 ,2015,1,
Central Services to the Public,Management & Support Services,Estates and Economic Development ,Supplies & Services,"Equipment, Furniture & Materials",Purchase Materials (Job Cost),C Brewer & Sons Ltd, 95.67 ,2015,1,
Central Services to the Public,Management & Support Services,Estates and Economic Development ,Supplies & Services,"Equipment, Furniture & Materials",Purchase Materials (Job Cost),Screwfix Direct Ltd, 17.91 ,2015,1,
Central Services to the Public,Management & Support Services,Estates and Economic Development ,Supplies & Services,"Equipment, Furniture & Materials",Purchase Materials (Job Cost),Screwfix Direct Ltd, 10.83 ,2015,1,
Central Services to the Public,Management & Support Services,Estates and Economic Development ,Supplies & Services,"Equipment, Furniture & Materials",Purchase Materials (Job Cost),Bss Group Plc, 118.63 ,2015,1,
Central Services to the Public,Management & Support Services,Estates and Economic Development ,Supplies & Services,"Equipment, Furniture & Materials",Purchase Materials (Job Cost),Bss Group Plc, 43.33 ,2015,1,
Central Services to the Public,Management & Support Services,Estates and Economic Development ,Supplies & Services,"Equipment, Furniture & Materials",Purchase Materials (Job Cost),Roland Security Llp, 11.52 ,2015,1,
Central Services to the Public,Management & Support Services,Estates and Economic Development ,Supplies & Services,"Equipment, Furniture & Materials",Purchase Materials (Job Cost),Wessex Fixings Ltd, 40.00 ,2015,1,
Central Services to the Public,Management & Support Services,Estates and Economic Development ,Supplies & Services,"Equipment, Furniture & Materials",Purchase Materials (Job Cost),British Central Electrical, 11.86 ,2015,1,
Central Services to the Public,Management & Support Services,Estates and Economic Development ,Supplies & Services,"Equipment, Furniture & Materials",Purchase Materials (Job Cost),Toolstation Ltd, 24.40 ,2015,1,
Central Services to the Public,Management & Support Services,Estates and Economic Development ,Supplies & Services,"Equipment, Furniture & Materials",Purchase Materials (Job Cost),Wessex Fixings Ltd, 18.45 ,2015,1,
Central Services to the Public,Management & Support Services,Estates and Economic Development ,Supplies & Services,"Equipment, Furniture & Materials",Purchase Materials (Job Cost),Plumb Centre, 213.96 ,2015,1,
Central Services to the Public,Management & Support Services,Estates and Economic Development ,Supplies & Services,"Equipment, Furniture & Materials",Purchase Materials (Job Cost),Plumb Centre, 19.85 ,2015,1,
Central Services to the Public,Management & Support Services,Estates and Economic Development ,Supplies & Services,"Equipment, Furniture & Materials",Purchase Materials (Job Cost),Plumb Centre, 2.04 ,2015,1,
Central Services to the Public,Management & Support Services,Estates and Economic Development ,Supplies & Services,"Equipment, Furniture & Materials",Purchase Materials (Job Cost),British Central Electrical, 10.11 ,2015,1,
Central Services to the Public,Management & Support Services,Estates and Economic Development ,Supplies & Services,"Equipment, Furniture & Materials",Purchase Materials (Job Cost),Toolstation Ltd, 35.83 ,2015,1,
Central Services to the Public,Management & Support Services,Estates and Economic Development ,Supplies & Services,"Equipment, Furniture & Materials",Purchase Materials (Job Cost),Woodstock Plumbing & Heating Supp Ltd, 6.96 ,2015,1,
Central Services to the Public,Management & Support Services,Estates and Economic Development ,Supplies & Services,"Equipment, Furniture & Materials",Purchase Materials (Job Cost),Woodstock Plumbing & Heating Supp Ltd, 4.58 ,2015,1,
Central Services to the Public,Management & Support Services,Estates and Economic Development ,Supplies & Services,"Equipment, Furniture & Materials",Purchase Materials (Job Cost),Plumb Centre, 27.35 ,2015,1,
Central Services to the Public,Management & Support Services,Estates and Economic Development ,Supplies & Services,"Equipment, Furniture & Materials",Purchase Materials (Job Cost),Unique Plumbing Supplies, 30.41 ,2015,1,
Central Services to the Public,Management & Support Services,Estates and Economic Development ,Supplies & Services,"Equipment, Furniture & Materials",Purchase Materials (Job Cost),Roland Security Llp, 50.92 ,2015,1,
Central Services to the Public,Management & Support Services,Estates and Economic Development ,Supplies & Services,"Equipment, Furniture & Materials",Purchase Materials (Job Cost),Roland Security Llp, 21.68 ,2015,1,
Central Services to the Public,Management & Support Services,Estates and Economic Development ,Supplies & Services,"Equipment, Furniture & Materials",Purchase Materials (Job Cost),Roland Security Llp, 14.85 ,2015,1,
Central Services to the Public,Management & Support Services,Estates and Economic Development ,Supplies & Services,"Equipment, Furniture & Materials",Purchase Materials (Job Cost),Andover Glass Works Ltd, 72.18 ,2015,1,
Central Services to the Public,Management & Support Services,Estates and Economic Development ,Supplies & Services,"Equipment, Furniture & Materials",Purchase Materials (Job Cost),Woodstock Plumbing & Heating Supp Ltd, 13.30 ,2015,1,
Central Services to the Public,Management & Support Services,Estates and Economic Development ,Supplies & Services,"Equipment, Furniture & Materials",Purchase Materials (Job Cost),Travis Perkins Trading Co Ltd, 23.34 ,2015,1,
Central Services to the Public,Management & Support Services,Estates and Economic Development ,Supplies & Services,"Equipment, Furniture & Materials",Purchase Materials (Job Cost),Travis Perkins Trading Co Ltd, 21.03 ,2015,1,
Central Services to the Public,Management & Support Services,Estates and Economic Development ,Supplies & Services,"Equipment, Furniture & Materials",Purchase Materials (Job Cost),Roland Security Llp, 9.28 ,2015,1,
Central Services to the Public,Management & Support Services,Estates and Economic Development ,Supplies & Services,"Equipment, Furniture & Materials",Purchase Materials (Job Cost),Roland Security Llp, 24.25 ,2015,1,
Central Services to the Public,Management & Support Services,Estates and Economic Development ,Supplies & Services,"Equipment, Furniture & Materials",Purchase Materials (Job Cost),Roland Security Llp, 1.28 ,2015,1,
Central Services to the Public,Management & Support Services,Estates and Economic Development ,Supplies & Services,"Equipment, Furniture & Materials",Purchase Materials (Job Cost),Travis Perkins Trading Co Ltd, 8.46 ,2015,1,
Central Services to the Public,Management & Support Services,Estates and Economic Development ,Supplies & Services,"Equipment, Furniture & Materials",Purchase Equip + Materials,Roland Security Llp, 2.91 ,2015,1,
Central Services to the Public,Management & Support Services,Estates and Economic Development ,Supplies & Services,"Equipment, Furniture & Materials",Purchase Materials (Job Cost),Travis Perkins Trading Co Ltd, 156.73 ,2015,1,
Central Services to the Public,Management & Support Services,Estates and Economic Development ,Supplies & Services,"Equipment, Furniture & Materials",Purchase Materials (Job Cost),Martins of Andover, 50.00 ,2015,1,
Central Services to the Public,Management & Support Services,Estates and Economic Development ,Supplies & Services,"Equipment, Furniture & Materials",Purchase Materials (Job Cost),The Range, 16.66 ,2015,1,
Central Services to the Public,Management & Support Services,Estates and Economic Development ,Supplies & Services,"Equipment, Furniture & Materials",Purchase Materials (Job Cost),C Brewer & Sons Ltd, 93.40 ,2015,1,
Central Services to the Public,Management & Support Services,Estates and Economic Development ,Supplies & Services,"Equipment, Furniture & Materials",Purchase Materials (Job Cost),C Brewer & Sons Ltd, 17.66 ,2015,1,
Central Services to the Public,Management & Support Services,Estates and Economic Development ,Supplies & Services,"Equipment, Furniture & Materials",Purchase Materials (Job Cost),C Brewer & Sons Ltd, 26.26 ,2015,1,
Central Services to the Public,Management & Support Services,Estates and Economic Development ,Supplies & Services,"Equipment, Furniture & Materials",Purchase Materials (Job Cost),C Brewer & Sons Ltd, 20.00 ,2015,1,
Central Services to the Public,Management & Support Services,Estates and Economic Development ,Supplies & Services,"Equipment, Furniture & Materials",Purchase Materials (Job Cost),Jewson Ltd, 35.59 ,2015,1,
Housing Services,Homelessness,Housing and Environmental Health ,Supplies & Services,Miscellaneous Expenses,Bed & Breakfast,Roadchef Rownhams, 308.00 ,2015,1,
Housing Services,Homelessness,Housing and Environmental Health ,Supplies & Services,Miscellaneous Expenses,Bed & Breakfast,LastMinute.com, 150.00 ,2015,1,
Environmental & Regulatory,Waste management,Environmental,Transport Related Expenditure,Direct Transport Costs,Licences,DVLA, 652.50 ,2015,1,
Environmental & Regulatory,Waste management,Environmental,Transport Related Expenditure,Direct Transport Costs,Licences,DVLA, 652.50 ,2015,1,
Environmental & Regulatory,Waste management,Environmental,Transport Related Expenditure,Direct Transport Costs,Licences,DVLA, 652.50 ,2015,1,
Environmental & Regulatory,Waste management,Environmental,Transport Related Expenditure,Direct Transport Costs,Licences,DVLA, 652.50 ,2015,1,
Cultural & Related,Open Spaces,Environmental,Transport Related Expenditure,Direct Transport Costs,Licences,DVLA, 227.50 ,2015,1,
Cultural & Related,Open Spaces,Community and Leisure ,Transport Related Expenditure,Direct Transport Costs,Licences,DVLA, 227.50 ,2015,1,
Central Services to the Public,Management & Support Services,Environmental,Transport Related Expenditure,Direct Transport Costs,Licences,DVLA, 227.50 ,2015,1,
Environmental & Regulatory,Waste management,Environmental,Transport Related Expenditure,Direct Transport Costs,Repair Materials,Tow-Trust Towbars Ltd, 204.67 ,2015,1,
Central Services to the Public,Management & Support Services,Environmental,Transport Related Expenditure,Direct Transport Costs,Repair Materials,J Davy Basingstoke, 90.45 ,2015,1,
Central Services to the Public,Management & Support Services,Environmental,Supplies & Services,"Equipment, Furniture & Materials",Purchase Equip + Materials,AMAZON, 19.99 ,2015,1,
Central Services to the Public,Management & Support Services,Environmental,Supplies & Services,Communications & Computing,Mobile Telephone Charges,AMAZON, 1.98 ,2015,1,
Environmental & Regulatory,Street Cleansing (not chargeable to Highways),Environmental,Transport Related Expenditure,Direct Transport Costs,Licences,DVLA, 167.50 ,2015,1,
Environmental & Regulatory,Street Cleansing (not chargeable to Highways),Environmental,Transport Related Expenditure,Direct Transport Costs,Licences,DVLA, 167.50 ,2015,1,
Environmental & Regulatory,Street Cleansing (not chargeable to Highways),Environmental,Transport Related Expenditure,Direct Transport Costs,Licences,DVLA, 167.50 ,2015,1,
Environmental & Regulatory,Waste management,Environmental,Transport Related Expenditure,Direct Transport Costs,Licences,DVLA, 652.50 ,2015,1,
Central Services to the Public,Management & Support Services,Environmental,Supplies & Services,"Equipment, Furniture & Materials",Purchase Equip + Materials,AMAZON, 11.92 ,2015,1,
Central Services to the Public,Management & Support Services,Estates and Economic Development ,Supplies & Services,"Equipment, Furniture & Materials",Purchase Equip + Materials,AMAZON, 15.50 ,2015,2,
Central Services to the Public,Management & Support Services,Estates and Economic Development ,Supplies & Services,"Equipment, Furniture & Materials",Purchase Equip + Materials,AMAZON, 41.50 ,2015,2,
Central Services to the Public,Management & Support Services,Estates and Economic Development ,Supplies & Services,"Equipment, Furniture & Materials",Purchase Materials (Job Cost),Instrument Glasses, 113.50 ,2015,2,
Central Services to the Public,Management & Support Services,Estates and Economic Development ,Supplies & Services,"Equipment, Furniture & Materials",Purchase Materials (Job Cost),Instrument Glasses, 3.40 ,2015,2,
Central Services to the Public,Management & Support Services,Estates and Economic Development ,Supplies & Services,"Equipment, Furniture & Materials",Purchase Equip + Materials,Wessex Fixings Ltd, 37.97 ,2015,2,
Central Services to the Public,Management & Support Services,Estates and Economic Development ,Supplies & Services,"Equipment, Furniture & Materials",Purchase Materials (Job Cost),British Central Electrical, 9.22 ,2015,2,
Central Services to the Public,Management & Support Services,Estates and Economic Development ,Supplies & Services,"Equipment, Furniture & Materials",Purchase Materials (Job Cost),Yesss Electrical, 205.07 ,2015,2,
Central Services to the Public,Management & Support Services,Estates and Economic Development ,Supplies & Services,"Equipment, Furniture & Materials",Purchase Materials (Job Cost),British Central Electrical, 22.03 ,2015,2,
Central Services to the Public,Management & Support Services,Estates and Economic Development ,Supplies & Services,"Equipment, Furniture & Materials",Purchase Materials (Job Cost),British Central Electrical, 51.18 ,2015,2,
Central Services to the Public,Management & Support Services,Estates and Economic Development ,Supplies & Services,"Equipment, Furniture & Materials",Purchase Materials (Job Cost),British Central Electrical, 71.08 ,2015,2,
Central Services to the Public,Management & Support Services,Estates and Economic Development ,Supplies & Services,"Equipment, Furniture & Materials",Purchase Materials (Job Cost),British Central Electrical, 5.43 ,2015,2,
Central Services to the Public,Management & Support Services,Estates and Economic Development ,Supplies & Services,"Equipment, Furniture & Materials",Purchase Materials (Job Cost),Yesss Electrical, 237.21 ,2015,2,
Central Services to the Public,Management & Support Services,Estates and Economic Development ,Supplies & Services,"Equipment, Furniture & Materials",Purchase Materials (Job Cost),British Central Electrical, 96.54 ,2015,2,
Central Services to the Public,Management & Support Services,Estates and Economic Development ,Supplies & Services,"Equipment, Furniture & Materials",Purchase Materials (Job Cost),Travis Perkins Trading Co Ltd, 15.99 ,2015,2,
Central Services to the Public,Management & Support Services,Estates and Economic Development ,Supplies & Services,"Equipment, Furniture & Materials",Purchase Materials (Job Cost),Travis Perkins Trading Co Ltd, 40.28 ,2015,2,
Central Services to the Public,Management & Support Services,Estates and Economic Development ,Supplies & Services,"Equipment, Furniture & Materials",Purchase Materials (Job Cost),Travis Perkins Trading Co Ltd, 112.82 ,2015,2,
Central Services to the Public,Management & Support Services,Estates and Economic Development ,Supplies & Services,"Equipment, Furniture & Materials",Purchase Materials (Job Cost),Travis Perkins Trading Co Ltd, 66.40 ,2015,2,
Central Services to the Public,Management & Support Services,Estates and Economic Development ,Supplies & Services,"Equipment, Furniture & Materials",Purchase Materials (Job Cost),Travis Perkins Trading Co Ltd, 26.76 ,2015,2,
Central Services to the Public,Management & Support Services,Estates and Economic Development ,Supplies & Services,"Equipment, Furniture & Materials",Purchase Materials (Job Cost),Buildbase Ltd, 134.06 ,2015,2,
Central Services to the Public,Management & Support Services,Estates and Economic Development ,Supplies & Services,"Equipment, Furniture & Materials",Purchase Materials (Job Cost),Travis Perkins Trading Co Ltd, 47.96 ,2015,2,
Central Services to the Public,Management & Support Services,Estates and Economic Development ,Supplies & Services,"Equipment, Furniture & Materials",Purchase Materials (Job Cost),Buildbase Ltd, 10.80 ,2015,2,
Central Services to the Public,Management & Support Services,Estates and Economic Development ,Supplies & Services,"Equipment, Furniture & Materials",Purchase Materials (Job Cost),Travis Perkins Trading Co Ltd, 36.74 ,2015,2,
Central Services to the Public,Management & Support Services,Estates and Economic Development ,Supplies & Services,"Equipment, Furniture & Materials",Purchase Materials (Job Cost),Travis Perkins Trading Co Ltd, 9.15 ,2015,2,
Central Services to the Public,Management & Support Services,Estates and Economic Development ,Supplies & Services,"Equipment, Furniture & Materials",Purchase Materials (Job Cost),Travis Perkins Trading Co Ltd, 164.92 ,2015,2,
Central Services to the Public,Management & Support Services,Estates and Economic Development ,Supplies & Services,"Equipment, Furniture & Materials",Purchase Materials (Job Cost),ATF Supplies, 183.88 ,2015,2,
Central Services to the Public,Management & Support Services,Estates and Economic Development ,Supplies & Services,"Equipment, Furniture & Materials",Purchase Materials (Job Cost),Travis Perkins Trading Co Ltd, 5.22 ,2015,2,
Central Services to the Public,Management & Support Services,Estates and Economic Development ,Supplies & Services,"Equipment, Furniture & Materials",Purchase Materials (Job Cost),Travis Perkins Trading Co Ltd, 42.87 ,2015,2,
Central Services to the Public,Management & Support Services,Estates and Economic Development ,Supplies & Services,"Equipment, Furniture & Materials",Purchase Materials (Job Cost),Howdens Joinery Co, 13.07 ,2015,2,
Central Services to the Public,Management & Support Services,Estates and Economic Development ,Supplies & Services,"Equipment, Furniture & Materials",Purchase Materials (Job Cost),Howdens Joinery Co, 40.55 ,2015,2,
Central Services to the Public,Management & Support Services,Estates and Economic Development ,Supplies & Services,"Equipment, Furniture & Materials",Purchase Materials (Job Cost),Jewson Ltd, 51.15 ,2015,2,
Central Services to the Public,Management & Support Services,Estates and Economic Development ,Supplies & Services,"Equipment, Furniture & Materials",Purchase Materials (Job Cost),C Brewer & Sons Ltd, 140.89 ,2015,2,
Central Services to the Public,Management & Support Services,Estates and Economic Development ,Supplies & Services,"Equipment, Furniture & Materials",Purchase Materials (Job Cost),C Brewer & Sons Ltd, 61.07 ,2015,2,
Central Services to the Public,Management & Support Services,Estates and Economic Development ,Supplies & Services,"Equipment, Furniture & Materials",Purchase Materials (Job Cost),Travis Perkins Trading Co Ltd, 53.15 ,2015,2,
Central Services to the Public,Management & Support Services,Estates and Economic Development ,Supplies & Services,"Equipment, Furniture & Materials",Purchase Materials (Job Cost),C Brewer & Sons Ltd, 19.26 ,2015,2,
Central Services to the Public,Management & Support Services,Estates and Economic Development ,Supplies & Services,"Equipment, Furniture & Materials",Purchase Materials (Job Cost),C Brewer & Sons Ltd, 13.86 ,2015,2,
Central Services to the Public,Management & Support Services,Estates and Economic Development ,Supplies & Services,"Equipment, Furniture & Materials",Purchase Materials (Job Cost),Screwfix Direct Ltd, 14.15 ,2015,2,
Central Services to the Public,Management & Support Services,Estates and Economic Development ,Supplies & Services,"Equipment, Furniture & Materials",Purchase Materials (Job Cost),C Brewer & Sons Ltd, 221.80 ,2015,2,
Central Services to the Public,Management & Support Services,Estates and Economic Development ,Supplies & Services,"Equipment, Furniture & Materials",Purchase Materials (Job Cost),C Brewer & Sons Ltd, 65.17 ,2015,2,
Central Services to the Public,Management & Support Services,Estates and Economic Development ,Supplies & Services,"Equipment, Furniture & Materials",Purchase Materials (Job Cost),Screwfix Direct Ltd, 6.00 ,2015,2,
Central Services to the Public,Management & Support Services,Estates and Economic Development ,Supplies & Services,"Equipment, Furniture & Materials",Purchase Materials (Job Cost),EUROCELL, 12.32 ,2015,2,
Central Services to the Public,Management & Support Services,Estates and Economic Development ,Supplies & Services,"Equipment, Furniture & Materials",Purchase Materials (Job Cost),Wickes Building Supplies Ltd, 4.41 ,2015,2,
Central Services to the Public,Management & Support Services,Estates and Economic Development ,Supplies & Services,"Equipment, Furniture & Materials",Purchase Materials (Job Cost),Woodstock Plumbing & Heating Supp Ltd, 11.94 ,2015,2,
Central Services to the Public,Management & Support Services,Estates and Economic Development ,Supplies & Services,"Equipment, Furniture & Materials",Purchase Materials (Job Cost),Buildbase Ltd, 49.68 ,2015,2,
Central Services to the Public,Management & Support Services,Estates and Economic Development ,Supplies & Services,"Equipment, Furniture & Materials",Purchase Materials (Job Cost),Howdens Joinery Co, 132.31 ,2015,2,
Central Services to the Public,Management & Support Services,Estates and Economic Development ,Supplies & Services,"Equipment, Furniture & Materials",Purchase Materials (Job Cost),Travis Perkins Trading Co Ltd, 133.39 ,2015,2,
Central Services to the Public,Management & Support Services,Estates and Economic Development ,Supplies & Services,"Equipment, Furniture & Materials",Purchase Materials (Job Cost),Plumb Centre, 59.20 ,2015,2,
Central Services to the Public,Management & Support Services,Estates and Economic Development ,Supplies & Services,"Equipment, Furniture & Materials",Purchase Materials (Job Cost),Plumb Centre, 59.63 ,2015,2,
Central Services to the Public,Management & Support Services,Estates and Economic Development ,Supplies & Services,"Equipment, Furniture & Materials",Purchase Materials (Job Cost),Plumb Centre, 103.25 ,2015,2,
Central Services to the Public,Management & Support Services,Estates and Economic Development ,Supplies & Services,"Equipment, Furniture & Materials",Purchase Materials (Job Cost),Plumb Centre, 15.80 ,2015,2,
Central Services to the Public,Management & Support Services,Estates and Economic Development ,Supplies & Services,"Equipment, Furniture & Materials",Purchase Materials (Job Cost),Plumb Centre, 85.00 ,2015,2,
Central Services to the Public,Management & Support Services,Estates and Economic Development ,Supplies & Services,"Equipment, Furniture & Materials",Purchase Materials (Job Cost),Plumb Centre, 17.74 ,2015,2,
Central Services to the Public,Management & Support Services,Estates and Economic Development ,Supplies & Services,"Equipment, Furniture & Materials",Purchase Materials (Job Cost),Plumb Centre, 17.74 ,2015,2,
Central Services to the Public,Management & Support Services,Estates and Economic Development ,Supplies & Services,"Equipment, Furniture & Materials",Purchase Materials (Job Cost),Plumb Centre, 20.00 ,2015,2,
Central Services to the Public,Management & Support Services,Estates and Economic Development ,Supplies & Services,"Equipment, Furniture & Materials",Purchase Materials (Job Cost),Plumb Centre, 17.19 ,2015,2,
Central Services to the Public,Management & Support Services,Estates and Economic Development ,Supplies & Services,"Equipment, Furniture & Materials",Purchase Materials (Job Cost),Plumb Centre, 4.52 ,2015,2,
Central Services to the Public,Management & Support Services,Estates and Economic Development ,Supplies & Services,"Equipment, Furniture & Materials",Purchase Materials (Job Cost),Plumb Centre, 7.50 ,2015,2,
Central Services to the Public,Management & Support Services,Estates and Economic Development ,Supplies & Services,"Equipment, Furniture & Materials",Purchase Equip + Materials,Portway Domestic Appliances Ltd, 295.83 ,2015,2,
Cultural & Related,Culture & Heritage,Estates and Economic Development ,Supplies & Services,"Equipment, Furniture & Materials",Purchase Equip + Materials,Nisbets, 30.92 ,2015,2,
Central Services to the Public,Management & Support Services,Estates and Economic Development ,Supplies & Services,"Equipment, Furniture & Materials",Purchase Equip + Materials,Roland Security Llp, 59.26 ,2015,2,
Central Services to the Public,Management & Support Services,Estates and Economic Development ,Supplies & Services,"Equipment, Furniture & Materials",Purchase Materials (Job Cost),Travis Perkins Trading Co Ltd, 5.54 ,2015,2,
Central Services to the Public,Management & Support Services,Estates and Economic Development ,Supplies & Services,"Equipment, Furniture & Materials",Purchase Materials (Job Cost),Travis Perkins Trading Co Ltd, 35.51 ,2015,2,
Central Services to the Public,Management & Support Services,Estates and Economic Development ,Supplies & Services,"Equipment, Furniture & Materials",Purchase Materials (Job Cost),Roland Security Llp, 33.68 ,2015,2,
Central Services to the Public,Management & Support Services,Estates and Economic Development ,Supplies & Services,"Equipment, Furniture & Materials",Purchase Materials (Job Cost),Roland Security Llp, 29.63 ,2015,2,
Central Services to the Public,Management & Support Services,Estates and Economic Development ,Supplies & Services,"Equipment, Furniture & Materials",Purchase Materials (Job Cost),Roland Security Llp, 28.95 ,2015,2,
Central Services to the Public,Management & Support Services,Estates and Economic Development ,Supplies & Services,"Equipment, Furniture & Materials",Purchase Materials (Job Cost),Homebase Ltd, 41.78 ,2015,2,
Central Services to the Public,Management & Support Services,Estates and Economic Development ,Supplies & Services,"Equipment, Furniture & Materials",Purchase Materials (Job Cost),Woodstock Plumbing & Heating Supp Ltd, 7.18 ,2015,2,
Central Services to the Public,Management & Support Services,Estates and Economic Development ,Supplies & Services,"Equipment, Furniture & Materials",Purchase Materials (Job Cost),Sainsbury's Supermarkets Ltd, 5.75 ,2015,2,
Central Services to the Public,Management & Support Services,Estates and Economic Development ,Supplies & Services,"Equipment, Furniture & Materials",Purchase Materials (Job Cost),Buildbase Ltd, 6.62 ,2015,2,
Central Services to the Public,Management & Support Services,Estates and Economic Development ,Supplies & Services,"Equipment, Furniture & Materials",Purchase Materials (Job Cost),Buildbase Ltd, 2.50 ,2015,2,
Central Services to the Public,Management & Support Services,Estates and Economic Development ,Supplies & Services,"Equipment, Furniture & Materials",Purchase Materials (Job Cost),Roland Security Llp, 3.25 ,2015,2,
Central Services to the Public,Management & Support Services,Estates and Economic Development ,Supplies & Services,"Equipment, Furniture & Materials",Purchase Materials (Job Cost),Jewson Ltd, 1.00 ,2015,2,
Central Services to the Public,Management & Support Services,Estates and Economic Development ,Supplies & Services,"Equipment, Furniture & Materials",Purchase Materials (Job Cost),Jewson Ltd, 8.39 ,2015,2,
Central Services to the Public,Management & Support Services,Estates and Economic Development ,Supplies & Services,"Equipment, Furniture & Materials",Purchase Materials (Job Cost),Jewson Ltd, 6.58 ,2015,2,
Housing Services,Homelessness,Housing and Environmental Health ,Supplies & Services,Miscellaneous Expenses,Bed & Breakfast,WVR. UK (Hoseasons), 493.20 ,2015,2,
Housing Services,Homelessness,Housing and Environmental Health ,Supplies & Services,Miscellaneous Expenses,Bed & Breakfast,WVR. UK (Hoseasons), 249.00 ,2015,2,
Housing Services,Homelessness,Housing and Environmental Health ,Supplies & Services,Miscellaneous Expenses,Bed & Breakfast,Days Inn, 220.00 ,2015,2,
Housing Services,Homelessness,Housing and Environmental Health ,Supplies & Services,Miscellaneous Expenses,Bed & Breakfast,Roadchef Rownhams, 264.00 ,2015,2,
Housing Services,Homelessness,Housing and Environmental Health ,Supplies & Services,Miscellaneous Expenses,Bed & Breakfast,Roadchef Rownhams, 264.00 ,2015,2,
Housing Services,Homelessness,Housing and Environmental Health ,Supplies & Services,Miscellaneous Expenses,Bed & Breakfast,WVR. UK (Hoseasons), 397.00 ,2015,2,
Central Services to the Public,Management & Support Services,Environmental,Supplies & Services,"Equipment, Furniture & Materials",Purchase Tools,Screwfix Direct Ltd, 41.66 ,2015,2,
Environmental & Regulatory,Regulatory Services,Housing and Environmental Health ,Transport Related Expenditure,Direct Transport Costs,Licences,DVLA, 227.50 ,2015,2,
Cultural & Related,Open Spaces,Environmental,Transport Related Expenditure,Direct Transport Costs,Licences,DVLA, 227.50 ,2015,2,
Cultural & Related,Open Spaces,Environmental,Transport Related Expenditure,Direct Transport Costs,Licences,DVLA, 227.50 ,2015,2,
Environmental & Regulatory,Regulatory Services,Housing and Environmental Health ,Transport Related Expenditure,Direct Transport Costs,Licences,DVLA, 227.50 ,2015,2,
Cultural & Related,Open Spaces,Environmental,Transport Related Expenditure,Direct Transport Costs,Licences,DVLA, 227.50 ,2015,2,
Cultural & Related,Open Spaces,Environmental,Transport Related Expenditure,Direct Transport Costs,Licences,DVLA, 227.50 ,2015,2,
Cultural & Related,Open Spaces,Environmental,Transport Related Expenditure,Direct Transport Costs,Licences,DVLA, 227.50 ,2015,2,
Cultural & Related,Open Spaces,Environmental,Transport Related Expenditure,Direct Transport Costs,Licences,DVLA, 227.50 ,2015,2,
Cultural & Related,Open Spaces,Environmental,Transport Related Expenditure,Direct Transport Costs,Licences,DVLA, 227.50 ,2015,2,
Cultural & Related,Open Spaces,Environmental,Transport Related Expenditure,Direct Transport Costs,Licences,DVLA, 227.50 ,2015,2,
Environmental & Regulatory,Waste management,Environmental,Transport Related Expenditure,Direct Transport Costs,Licences,DVLA, 652.50 ,2015,2,
Environmental & Regulatory,Waste management,Environmental,Transport Related Expenditure,Direct Transport Costs,Tyres,DVLA, 652.50 ,2015,2,
Cultural & Related,Open Spaces,Environmental,Transport Related Expenditure,Direct Transport Costs,Licences,DVLA, 227.50 ,2015,2,
Cultural & Related,Open Spaces,Environmental,Transport Related Expenditure,Direct Transport Costs,Licences,DVLA, 227.50 ,2015,2,
Environmental & Regulatory,Street Cleansing (not chargeable to Highways),Environmental,Transport Related Expenditure,Direct Transport Costs,Licences,DVLA, 227.50 ,2015,2,
Environmental & Regulatory,Street Cleansing (not chargeable to Highways),Environmental,Transport Related Expenditure,Direct Transport Costs,Licences,DVLA, 227.50 ,2015,2,
Environmental & Regulatory,Street Cleansing (not chargeable to Highways),Environmental,Transport Related Expenditure,Direct Transport Costs,Licences,DVLA, 227.50 ,2015,2,
Environmental & Regulatory,Street Cleansing (not chargeable to Highways),Environmental,Transport Related Expenditure,Direct Transport Costs,Licences,DVLA, 227.50 ,2015,2,
Central Services to the Public,Management & Support Services,Environmental,Transport Related Expenditure,Direct Transport Costs,Repair Materials,J Davy Basingstoke, 108.00 ,2015,2,
Cultural & Related,Open Spaces,Environmental,Transport Related Expenditure,Direct Transport Costs,Licences,DVLA, 227.50 ,2015,2,
Central Services to the Public,Management & Support Services,Environmental,Transport Related Expenditure,Direct Transport Costs,Repair Materials,J Davy Basingstoke, 90.45 ,2015,2,
Central Services to the Public,Management & Support Services,Environmental,Supplies & Services,"Equipment, Furniture & Materials",Purchase Equip + Materials,AMAZON, 9.75 ,2015,2,
Cultural & Related,Culture & Heritage,Estates and Economic Development ,Supplies & Services,"Equipment, Furniture & Materials",Purchase Equip + Materials,AMAZON, 34.07 ,2015,3,
Central Services to the Public,Management & Support Services,Estates and Economic Development ,Supplies & Services,"Equipment, Furniture & Materials",Purchase Equip + Materials,AMAZON, 44.81 ,2015,3,
Central Services to the Public,Management & Support Services,Estates and Economic Development ,Supplies & Services,"Equipment, Furniture & Materials",Purchase Materials (Job Cost),NETLIGHTING, 178.20 ,2015,3,
Central Services to the Public,Management & Support Services,Estates and Economic Development ,Supplies & Services,"Equipment, Furniture & Materials",Purchase Equip + Materials,AMAZON, 16.99 ,2015,3,
Central Services to the Public,Management & Support Services,Estates and Economic Development ,Supplies & Services,"Equipment, Furniture & Materials",Purchase Materials (Job Cost),Wessex Fixings Ltd, 41.26 ,2015,3,
Central Services to the Public,Management & Support Services,Estates and Economic Development ,Supplies & Services,"Equipment, Furniture & Materials",Purchase Materials (Job Cost),British Central Electrical, 1.96 ,2015,3,
Central Services to the Public,Management & Support Services,Estates and Economic Development ,Supplies & Services,"Equipment, Furniture & Materials",Purchase Materials (Job Cost),British Central Electrical, 11.15 ,2015,3,
Central Services to the Public,Management & Support Services,Estates and Economic Development ,Supplies & Services,"Equipment, Furniture & Materials",Purchase Materials (Job Cost),Yesss Electrical, 18.06 ,2015,3,
Central Services to the Public,Management & Support Services,Estates and Economic Development ,Supplies & Services,"Equipment, Furniture & Materials",Purchase Equip + Materials,British Central Electrical, 10.32 ,2015,3,
Central Services to the Public,Management & Support Services,Estates and Economic Development ,Supplies & Services,"Equipment, Furniture & Materials",Purchase Materials (Job Cost),Wessex Fixings Ltd, 27.42 ,2015,3,
Central Services to the Public,Management & Support Services,Estates and Economic Development ,Supplies & Services,"Equipment, Furniture & Materials",Purchase Materials (Job Cost),British Central Electrical, 18.69 ,2015,3,
Central Services to the Public,Management & Support Services,Estates and Economic Development ,Supplies & Services,"Equipment, Furniture & Materials",Purchase Materials (Job Cost),Screwfix Direct Ltd, 20.83 ,2015,3,
Central Services to the Public,Management & Support Services,Estates and Economic Development ,Supplies & Services,"Equipment, Furniture & Materials",Purchase Materials (Job Cost),Yesss Electrical, 58.04 ,2015,3,
Central Services to the Public,Management & Support Services,Estates and Economic Development ,Supplies & Services,"Equipment, Furniture & Materials",Purchase Materials (Job Cost),British Central Electrical, 37.26 ,2015,3,
Central Services to the Public,Management & Support Services,Estates and Economic Development ,Supplies & Services,"Equipment, Furniture & Materials",Purchase Materials (Job Cost),Wessex Fixings Ltd, 14.72 ,2015,3,
Central Services to the Public,Management & Support Services,Estates and Economic Development ,Supplies & Services,"Equipment, Furniture & Materials",Purchase Materials (Job Cost),British Central Electrical, 22.20 ,2015,3,
Central Services to the Public,Management & Support Services,Estates and Economic Development ,Supplies & Services,"Equipment, Furniture & Materials",Purchase Materials (Job Cost),British Central Electrical, 130.75 ,2015,3,
Central Services to the Public,Management & Support Services,Estates and Economic Development ,Supplies & Services,"Equipment, Furniture & Materials",Purchase Materials (Job Cost),British Central Electrical, 32.25 ,2015,3,
Central Services to the Public,Management & Support Services,Estates and Economic Development ,Supplies & Services,"Equipment, Furniture & Materials",Purchase Materials (Job Cost),British Central Electrical, 0.85 ,2015,3,
Central Services to the Public,Management & Support Services,Estates and Economic Development ,Supplies & Services,"Equipment, Furniture & Materials",Purchase Materials (Job Cost),British Central Electrical, 25.86 ,2015,3,
Central Services to the Public,Management & Support Services,Estates and Economic Development ,Supplies & Services,"Equipment, Furniture & Materials",Purchase Materials (Job Cost),British Central Electrical, 14.97 ,2015,3,
Central Services to the Public,Management & Support Services,Estates and Economic Development ,Supplies & Services,"Equipment, Furniture & Materials",Purchase Materials (Job Cost),Yesss Electrical, 99.38 ,2015,3,
Central Services to the Public,Management & Support Services,Estates and Economic Development ,Supplies & Services,"Equipment, Furniture & Materials",Purchase Materials (Job Cost),British Central Electrical, 11.66 ,2015,3,
Central Services to the Public,Management & Support Services,Estates and Economic Development ,Supplies & Services,"Equipment, Furniture & Materials",Purchase Materials (Job Cost),Wickes Building Supplies Ltd, 138.29 ,2015,3,
Central Services to the Public,Management & Support Services,Estates and Economic Development ,Supplies & Services,"Equipment, Furniture & Materials",Purchase Materials (Job Cost),Yesss Electrical, 16.73 ,2015,3,
Central Services to the Public,Management & Support Services,Estates and Economic Development ,Supplies & Services,"Equipment, Furniture & Materials",Purchase Materials (Job Cost),Toolstation Ltd, 6.91 ,2015,3,
Central Services to the Public,Management & Support Services,Estates and Economic Development ,Supplies & Services,"Equipment, Furniture & Materials",Purchase Materials (Job Cost),Yesss Electrical, 13.21 ,2015,3,
Central Services to the Public,Management & Support Services,Estates and Economic Development ,Supplies & Services,"Equipment, Furniture & Materials",Purchase Materials (Job Cost),Yesss Electrical, 18.36 ,2015,3,
Central Services to the Public,Management & Support Services,Estates and Economic Development ,Supplies & Services,"Equipment, Furniture & Materials",Purchase Materials (Job Cost),British Central Electrical, 15.30 ,2015,3,
Central Services to the Public,Management & Support Services,Estates and Economic Development ,Supplies & Services,"Equipment, Furniture & Materials",Purchase Materials (Job Cost),British Central Electrical, 33.40 ,2015,3,
Central Services to the Public,Management & Support Services,Estates and Economic Development ,Supplies & Services,"Equipment, Furniture & Materials",Purchase Materials (Job Cost),British Central Electrical, 8.00 ,2015,3,
Central Services to the Public,Management & Support Services,Estates and Economic Development ,Supplies & Services,"Equipment, Furniture & Materials",Purchase Materials (Job Cost),British Central Electrical, 299.38 ,2015,3,
Central Services to the Public,Management & Support Services,Estates and Economic Development ,Supplies & Services,"Equipment, Furniture & Materials",Purchase Materials (Job Cost),British Central Electrical, 47.74 ,2015,3,
Central Services to the Public,Management & Support Services,Estates and Economic Development ,Supplies & Services,"Equipment, Furniture & Materials",Purchase Materials (Job Cost),British Central Electrical, 82.28 ,2015,3,
Central Services to the Public,Management & Support Services,Estates and Economic Development ,Supplies & Services,"Equipment, Furniture & Materials",Purchase Materials (Job Cost),British Central Electrical, 3.02 ,2015,3,
Central Services to the Public,Management & Support Services,Estates and Economic Development ,Supplies & Services,"Equipment, Furniture & Materials",Purchase Materials (Job Cost),Kew (Electrical Distributors) Limited, 75.90 ,2015,3,
Central Services to the Public,Management & Support Services,Estates and Economic Development ,Supplies & Services,"Equipment, Furniture & Materials",Purchase Materials (Job Cost),British Central Electrical, 10.63 ,2015,3,
Central Services to the Public,Management & Support Services,Estates and Economic Development ,Supplies & Services,"Equipment, Furniture & Materials",Purchase Materials (Job Cost),Yesss Electrical, 52.30 ,2015,3,
Central Services to the Public,Management & Support Services,Estates and Economic Development ,Supplies & Services,"Equipment, Furniture & Materials",Purchase Materials (Job Cost),British Central Electrical, 6.38 ,2015,3,
Central Services to the Public,Management & Support Services,Estates and Economic Development ,Supplies & Services,"Equipment, Furniture & Materials",Purchase Materials (Job Cost),British Central Electrical, 14.82 ,2015,3,
Central Services to the Public,Management & Support Services,Estates and Economic Development ,Supplies & Services,"Equipment, Furniture & Materials",Purchase Materials (Job Cost),Yesss Electrical, 8.23 ,2015,3,
Central Services to the Public,Management & Support Services,Estates and Economic Development ,Supplies & Services,"Equipment, Furniture & Materials",Purchase Materials (Job Cost),Yesss Electrical, 5.94 ,2015,3,
Central Services to the Public,Management & Support Services,Estates and Economic Development ,Supplies & Services,"Equipment, Furniture & Materials",Purchase Materials (Job Cost),British Central Electrical, 30.00 ,2015,3,
Central Services to the Public,Management & Support Services,Estates and Economic Development ,Supplies & Services,"Equipment, Furniture & Materials",Purchase Materials (Job Cost),British Central Electrical, 37.08 ,2015,3,
Central Services to the Public,Management & Support Services,Estates and Economic Development ,Supplies & Services,"Equipment, Furniture & Materials",Purchase Materials (Job Cost),British Central Electrical, 15.80 ,2015,3,
Central Services to the Public,Management & Support Services,Estates and Economic Development ,Supplies & Services,"Equipment, Furniture & Materials",Purchase Materials (Job Cost),C Brewer & Sons Ltd, 32.58 ,2015,3,
Central Services to the Public,Management & Support Services,Estates and Economic Development ,Supplies & Services,"Equipment, Furniture & Materials",Purchase Materials (Job Cost),Travis Perkins Trading Co Ltd, 35.43 ,2015,3,
Central Services to the Public,Management & Support Services,Estates and Economic Development ,Supplies & Services,"Equipment, Furniture & Materials",Purchase Materials (Job Cost),Travis Perkins Trading Co Ltd, 8.75 ,2015,3,
Central Services to the Public,Management & Support Services,Estates and Economic Development ,Supplies & Services,"Equipment, Furniture & Materials",Purchase Materials (Job Cost),Travis Perkins Trading Co Ltd, 21.18 ,2015,3,
Central Services to the Public,Management & Support Services,Estates and Economic Development ,Supplies & Services,"Equipment, Furniture & Materials",Purchase Materials (Job Cost),A.T.F Supplies, 303.28 ,2015,3,
Central Services to the Public,Management & Support Services,Estates and Economic Development ,Supplies & Services,"Equipment, Furniture & Materials",Purchase Materials (Job Cost),Travis Perkins Trading Co Ltd, 110.86 ,2015,3,
Central Services to the Public,Management & Support Services,Estates and Economic Development ,Supplies & Services,"Equipment, Furniture & Materials",Purchase Materials (Job Cost),Travis Perkins Trading Co Ltd, 8.04 ,2015,3,
Central Services to the Public,Management & Support Services,Estates and Economic Development ,Supplies & Services,"Equipment, Furniture & Materials",Purchase Materials (Job Cost),A.T.F Supplies, 178.00 ,2015,3,
Central Services to the Public,Management & Support Services,Estates and Economic Development ,Supplies & Services,"Equipment, Furniture & Materials",Purchase Materials (Job Cost),A.T.F Supplies, 178.00 ,2015,3,
Central Services to the Public,Management & Support Services,Estates and Economic Development ,Supplies & Services,"Equipment, Furniture & Materials",Purchase Materials (Job Cost),Travis Perkins Trading Co Ltd, 34.85 ,2015,3,
Central Services to the Public,Management & Support Services,Estates and Economic Development ,Supplies & Services,"Equipment, Furniture & Materials",Purchase Materials (Job Cost),Travis Perkins Trading Co Ltd, 25.53 ,2015,3,
Central Services to the Public,Management & Support Services,Estates and Economic Development ,Supplies & Services,"Equipment, Furniture & Materials",Purchase Materials (Job Cost),Travis Perkins Trading Co Ltd, 8.34 ,2015,3,
Central Services to the Public,Management & Support Services,Estates and Economic Development ,Supplies & Services,"Equipment, Furniture & Materials",Purchase Materials (Job Cost),Travis Perkins Trading Co Ltd, 16.08 ,2015,3,
Central Services to the Public,Management & Support Services,Estates and Economic Development ,Supplies & Services,"Equipment, Furniture & Materials",Purchase Materials (Job Cost),Travis Perkins Trading Co Ltd, 10.02 ,2015,3,
Central Services to the Public,Management & Support Services,Estates and Economic Development ,Supplies & Services,"Equipment, Furniture & Materials",Purchase Materials (Job Cost),Travis Perkins Trading Co Ltd, 42.66 ,2015,3,
Central Services to the Public,Management & Support Services,Estates and Economic Development ,Supplies & Services,"Equipment, Furniture & Materials",Purchase Materials (Job Cost),Travis Perkins Trading Co Ltd, 47.15 ,2015,3,
Central Services to the Public,Management & Support Services,Estates and Economic Development ,Supplies & Services,"Equipment, Furniture & Materials",Purchase Materials (Job Cost),Travis Perkins Trading Co Ltd, 22.00 ,2015,3,
Central Services to the Public,Management & Support Services,Estates and Economic Development ,Supplies & Services,"Equipment, Furniture & Materials",Purchase Materials (Job Cost),Travis Perkins Trading Co Ltd, 7.55 ,2015,3,
Central Services to the Public,Management & Support Services,Estates and Economic Development ,Supplies & Services,"Equipment, Furniture & Materials",Purchase Materials (Job Cost),Plumb Centre, 35.51 ,2015,3,
Central Services to the Public,Management & Support Services,Estates and Economic Development ,Supplies & Services,"Equipment, Furniture & Materials",Purchase Materials (Job Cost),Plumb Centre, 8.06 ,2015,3,
Central Services to the Public,Management & Support Services,Estates and Economic Development ,Supplies & Services,"Equipment, Furniture & Materials",Purchase Materials (Job Cost),C Brewer & Sons Ltd, 168.83 ,2015,3,
Central Services to the Public,Management & Support Services,Estates and Economic Development ,Supplies & Services,"Equipment, Furniture & Materials",Purchase Materials (Job Cost),Travis Perkins Trading Co Ltd, 20.65 ,2015,3,
Central Services to the Public,Management & Support Services,Estates and Economic Development ,Supplies & Services,"Equipment, Furniture & Materials",Purchase Materials (Job Cost),C Brewer & Sons Ltd, 41.00 ,2015,3,
Central Services to the Public,Management & Support Services,Estates and Economic Development ,Supplies & Services,"Equipment, Furniture & Materials",Purchase Materials (Job Cost),Toolstation Ltd, 33.29 ,2015,3,
Central Services to the Public,Management & Support Services,Estates and Economic Development ,Supplies & Services,"Equipment, Furniture & Materials",Purchase Materials (Job Cost),Screwfix Direct Ltd, 10.83 ,2015,3,
Central Services to the Public,Management & Support Services,Estates and Economic Development ,Supplies & Services,"Equipment, Furniture & Materials",Purchase Materials (Job Cost),Roland Security Llp, 5.42 ,2015,3,
Central Services to the Public,Management & Support Services,Estates and Economic Development ,Supplies & Services,"Equipment, Furniture & Materials",Purchase Materials (Job Cost),Toolstation Ltd, 10.27 ,2015,3,
Central Services to the Public,Management & Support Services,Estates and Economic Development ,Supplies & Services,"Equipment, Furniture & Materials",Purchase Materials (Job Cost),C Brewer & Sons Ltd, 43.30 ,2015,3,
Central Services to the Public,Management & Support Services,Estates and Economic Development ,Supplies & Services,"Equipment, Furniture & Materials",Purchase Materials (Job Cost),Roland Security Llp, 31.68 ,2015,3,
Central Services to the Public,Management & Support Services,Estates and Economic Development ,Supplies & Services,"Equipment, Furniture & Materials",Purchase Materials (Job Cost),C Brewer & Sons Ltd, 208.30 ,2015,3,
Central Services to the Public,Management & Support Services,Estates and Economic Development ,Supplies & Services,"Equipment, Furniture & Materials",Purchase Materials (Job Cost),C Brewer & Sons Ltd, 14.20 ,2015,3,
Central Services to the Public,Management & Support Services,Estates and Economic Development ,Supplies & Services,"Equipment, Furniture & Materials",Purchase Materials (Job Cost),Wessex Fixings Ltd, 6.12 ,2015,3,
Central Services to the Public,Management & Support Services,Estates and Economic Development ,Supplies & Services,"Equipment, Furniture & Materials",Purchase Materials (Job Cost),Wessex Fixings Ltd, 1.78 ,2015,3,
Central Services to the Public,Management & Support Services,Estates and Economic Development ,Supplies & Services,"Equipment, Furniture & Materials",Purchase Materials (Job Cost),Wessex Fixings Ltd, 15.72 ,2015,3,
Central Services to the Public,Management & Support Services,Estates and Economic Development ,Supplies & Services,"Equipment, Furniture & Materials",Purchase Materials (Job Cost),Plumb Centre, 14.15 ,2015,3,
Central Services to the Public,Management & Support Services,Estates and Economic Development ,Supplies & Services,"Equipment, Furniture & Materials",Purchase Materials (Job Cost),Plumb Centre, 54.28 ,2015,3,
Central Services to the Public,Management & Support Services,Estates and Economic Development ,Supplies & Services,"Equipment, Furniture & Materials",Purchase Materials (Job Cost),Plumb Centre, 15.56 ,2015,3,
Central Services to the Public,Management & Support Services,Estates and Economic Development ,Supplies & Services,"Equipment, Furniture & Materials",Purchase Materials (Job Cost),Plumb Centre, 427.62 ,2015,3,
Central Services to the Public,Management & Support Services,Estates and Economic Development ,Supplies & Services,"Equipment, Furniture & Materials",Purchase Materials (Job Cost),Plumb Centre, 6.37 ,2015,3,
Central Services to the Public,Management & Support Services,Estates and Economic Development ,Supplies & Services,"Equipment, Furniture & Materials",Purchase Materials (Job Cost),Screwfix Direct Ltd, 16.66 ,2015,3,
Central Services to the Public,Management & Support Services,Estates and Economic Development ,Supplies & Services,"Equipment, Furniture & Materials",Purchase Materials (Job Cost),Plumb Centre, 17.74 ,2015,3,
Central Services to the Public,Management & Support Services,Estates and Economic Development ,Supplies & Services,"Equipment, Furniture & Materials",Purchase Materials (Job Cost),Plumb Centre, 212.74 ,2015,3,
Central Services to the Public,Management & Support Services,Estates and Economic Development ,Supplies & Services,"Equipment, Furniture & Materials",Purchase Materials (Job Cost),Screwfix Direct Ltd, 3.33 ,2015,3,
Central Services to the Public,Management & Support Services,Estates and Economic Development ,Supplies & Services,"Equipment, Furniture & Materials",Purchase Materials (Job Cost),Plumb Centre, 195.28 ,2015,3,
Central Services to the Public,Management & Support Services,Estates and Economic Development ,Supplies & Services,"Equipment, Furniture & Materials",Purchase Materials (Job Cost),Travis Perkins Trading Co Ltd, 201.24 ,2015,3,
Central Services to the Public,Management & Support Services,Estates and Economic Development ,Supplies & Services,"Equipment, Furniture & Materials",Purchase Materials (Job Cost),Wessex Fixings Ltd, 73.68 ,2015,3,
Central Services to the Public,Management & Support Services,Estates and Economic Development ,Supplies & Services,"Equipment, Furniture & Materials",Purchase Materials (Job Cost),Plumb Centre, 10.52 ,2015,3,
Central Services to the Public,Management & Support Services,Estates and Economic Development ,Supplies & Services,"Equipment, Furniture & Materials",Purchase Materials (Job Cost),Plumb Centre, 86.78 ,2015,3,
Central Services to the Public,Management & Support Services,Estates and Economic Development ,Supplies & Services,"Equipment, Furniture & Materials",Purchase Materials (Job Cost),Wessex Fixings Ltd, 21.18 ,2015,3,
Central Services to the Public,Management & Support Services,Estates and Economic Development ,Supplies & Services,"Equipment, Furniture & Materials",Purchase Materials (Job Cost),Wessex Fixings Ltd, 64.40 ,2015,3,
Central Services to the Public,Management & Support Services,Estates and Economic Development ,Supplies & Services,"Equipment, Furniture & Materials",Purchase Materials (Job Cost),A.T.F Supplies, 365.55 ,2015,3,
Central Services to the Public,Management & Support Services,Estates and Economic Development ,Supplies & Services,"Equipment, Furniture & Materials",Purchase Materials (Job Cost),A.T.F Supplies, 195.06 ,2015,3,
Central Services to the Public,Management & Support Services,Estates and Economic Development ,Supplies & Services,"Equipment, Furniture & Materials",Purchase Materials (Job Cost),Wessex Fixings Ltd, 76.84 ,2015,3,
Central Services to the Public,Management & Support Services,Estates and Economic Development ,Supplies & Services,"Equipment, Furniture & Materials",Purchase Materials (Job Cost),Woodstock Plumbing & Heating Supp Ltd, 144.32 ,2015,3,
Central Services to the Public,Management & Support Services,Estates and Economic Development ,Supplies & Services,"Equipment, Furniture & Materials",Purchase Materials (Job Cost),A.T.F Supplies, 152.31 ,2015,3,
Central Services to the Public,Management & Support Services,Estates and Economic Development ,Supplies & Services,"Equipment, Furniture & Materials",Purchase Materials (Job Cost),Plumb Centre, 12.39 ,2015,3,
Central Services to the Public,Management & Support Services,Estates and Economic Development ,Supplies & Services,"Equipment, Furniture & Materials",Purchase Materials (Job Cost),Plumb Centre, 37.28 ,2015,3,
Central Services to the Public,Management & Support Services,Estates and Economic Development ,Supplies & Services,"Equipment, Furniture & Materials",Purchase Materials (Job Cost),Plumb Centre, 15.80 ,2015,3,
Central Services to the Public,Management & Support Services,Estates and Economic Development ,Supplies & Services,"Equipment, Furniture & Materials",Purchase Materials (Job Cost),Plumb Centre, 17.74 ,2015,3,
Central Services to the Public,Management & Support Services,Estates and Economic Development ,Supplies & Services,"Equipment, Furniture & Materials",Purchase Materials (Job Cost),Woodstock Plumbing & Heating Supp Ltd, 4.94 ,2015,3,
Central Services to the Public,Management & Support Services,Estates and Economic Development ,Supplies & Services,"Equipment, Furniture & Materials",Purchase Materials (Job Cost),Toolstation Ltd, 9.77 ,2015,3,
Central Services to the Public,Management & Support Services,Estates and Economic Development ,Supplies & Services,"Equipment, Furniture & Materials",Purchase Materials (Job Cost),Toolstation Ltd, 16.66 ,2015,3,
Central Services to the Public,Management & Support Services,Estates and Economic Development ,Supplies & Services,"Equipment, Furniture & Materials",Purchase Materials (Job Cost),Wessex Fixings Ltd, 21.66 ,2015,3,
Central Services to the Public,Management & Support Services,Estates and Economic Development ,Supplies & Services,"Equipment, Furniture & Materials",Purchase Materials (Job Cost),Electric Water Heating Co., 166.24 ,2015,3,
Cultural & Related,Culture & Heritage,Estates and Economic Development ,Supplies & Services,"Equipment, Furniture & Materials",Purchase Equip + Materials,NISBETS, 119.99 ,2015,3,
Central Services to the Public,Management & Support Services,Estates and Economic Development ,Supplies & Services,"Equipment, Furniture & Materials",Purchase Equip + Materials,NISBETS, 13.98 ,2015,3,
Central Services to the Public,Management & Support Services,Estates and Economic Development ,Supplies & Services,"Equipment, Furniture & Materials",Purchase Materials (Job Cost),Travis Perkins Trading Co Ltd, 79.38 ,2015,3,
Central Services to the Public,Management & Support Services,Estates and Economic Development ,Supplies & Services,"Equipment, Furniture & Materials",Purchase Materials (Job Cost),Travis Perkins Trading Co Ltd, 67.74 ,2015,3,
Central Services to the Public,Management & Support Services,Estates and Economic Development ,Supplies & Services,"Equipment, Furniture & Materials",Purchase Equip + Materials,Roland Security Llp, 13.55 ,2015,3,
Central Services to the Public,Management & Support Services,Estates and Economic Development ,Supplies & Services,"Equipment, Furniture & Materials",Purchase Materials (Job Cost),Travis Perkins Trading Co Ltd, 27.09 ,2015,3,
Central Services to the Public,Management & Support Services,Estates and Economic Development ,Supplies & Services,"Equipment, Furniture & Materials",Purchase Materials (Job Cost),Roland Security Llp, 8.35 ,2015,3,
Central Services to the Public,Management & Support Services,Estates and Economic Development ,Supplies & Services,"Equipment, Furniture & Materials",Purchase Materials (Job Cost),Roland Security Llp, 30.48 ,2015,3,
Central Services to the Public,Management & Support Services,Estates and Economic Development ,Supplies & Services,"Equipment, Furniture & Materials",Purchase Materials (Job Cost),A.T.F Supplies, 374.49 ,2015,3,
Central Services to the Public,Management & Support Services,Estates and Economic Development ,Supplies & Services,"Equipment, Furniture & Materials",Purchase Materials (Job Cost),A.T.F Supplies, 257.40 ,2015,3,
"Highways, Roads & Transport",Parking Services,Plan Pol & Transport,Supplies & Services,"Equipment, Furniture & Materials",Purchase Equip + Materials,Roland Security Llp, 16.26 ,2015,3,
Central Services to the Public,Management & Support Services,Estates and Economic Development ,Supplies & Services,"Equipment, Furniture & Materials",Purchase Materials (Job Cost),Roland Security Llp, 9.76 ,2015,3,
Central Services to the Public,Management & Support Services,Estates and Economic Development ,Supplies & Services,"Equipment, Furniture & Materials",Purchase Materials (Job Cost),A.T.F Supplies, 211.20 ,2015,3,
Central Services to the Public,Management & Support Services,Estates and Economic Development ,Supplies & Services,"Equipment, Furniture & Materials",Purchase Materials (Job Cost),C Brewer & Sons Ltd, 50.36 ,2015,3,
Central Services to the Public,Management & Support Services,Estates and Economic Development ,Supplies & Services,"Equipment, Furniture & Materials",Purchase Materials (Job Cost),C Brewer & Sons Ltd, 18.29 ,2015,3,
Central Services to the Public,Management & Support Services,Estates and Economic Development ,Supplies & Services,"Equipment, Furniture & Materials",Purchase Materials (Job Cost),C Brewer & Sons Ltd, 113.66 ,2015,3,
Central Services to the Public,Management & Support Services,Estates and Economic Development ,Supplies & Services,"Equipment, Furniture & Materials",Purchase Materials (Job Cost),Travis Perkins Trading Co Ltd, 18.14 ,2015,3,
Central Services to the Public,Management & Support Services,Estates and Economic Development ,Supplies & Services,"Equipment, Furniture & Materials",Purchase Materials (Job Cost),SHELL PORTWAY, 4.17 ,2015,3,
